Cogmind - Beta 10.2 @@@ ROGUE MODE // 2022.03.19 @ 05:47:16 // Winter2019/RPGLIKE Player: Wayward Satellite Result: Destroyed by H-88 Terminator with KE Penetrator Performance ------------- Evolutions (9) 4500 Regions Visited (35) 7000 Robots Destroyed (480) 2400 Value Destroyed (24074) 24074 Prototype IDs (70) 1400 Alien Tech Used (0) 0 Bonus (15891) 15891 TOTAL SCORE: 55265 Bonus ------- Triggered High Security 500 High Alert Combat Kills 6692 Follower Combat Kills 954 Entered Garrisons 200 Used RIF Installer 500 Network Hubs Disabled 400 Aligned with FarCom 300 Met Data Miner 300 Met Imprinter 300 Met Warlord at Base 500 MAIN.C Attacked Warlord 500 Met R17 at Cetus 500 Met Warlord at Research 2000 Destroyed MAIN.C Guards 500 Met Warlord at Command 2000 Friendly Fire -255 Cogmind --------- Core Integrity 0/1300 Matter 300/300 Energy 209/1100 System Corruption 9% Temperature Cool (0) Movement Hovering (35) Location -1/Command Parts ------- > --- POWER (3) -------- Cold Fusion Reactor Vortex Chain Reactor > --- PROPULSION (6) --- Cooled Gravmag System Cooled Gravmag System Cooled Antigrav System Experimental Gyrokinetic Inverter Experimental Gyrokinetic Inverter Combat Linear Gravjet > --- UTILITY (11) ----- Compact Battery Advanced Melee Analysis Suite Nanoactuators Nanoactuators Advanced Actuator Array Advanced Force Booster Advanced Reaction Control System Centrium Medium Armor Plating Experimental Focal Shield Advanced Force Field Advanced Hacking Suite > --- WEAPON (6) ------- Molecular Scythe Centrium Greatsword Nanosword Plasma Lance Plasma Lance > --- INVENTORY (6) ---- Reaction Control System Experimental Thermal Shield Improved Shock Absorption System Long-range Missile Launcher Advanced Remote Datajack Peak State ------------ > --- POWER ------------ Cold Fusion Reactor Vortex Chain Reactor > --- PROPULSION ------- Cooled Gravmag System Cooled Gravmag System Cooled Antigrav System Experimental Gyrokinetic Inverter Experimental Gyrokinetic Inverter Combat Linear Gravjet > --- UTILITY ---------- Compact Battery Advanced Melee Analysis Suite Nanoactuators Nanoactuators Advanced Actuator Array Advanced Force Booster Advanced Reaction Control System Centrium Medium Armor Plating Experimental Focal Shield Advanced Force Field Advanced Hacking Suite > --- WEAPON ----------- Molecular Scythe Centrium Greatsword Nanosword Plasma Lance Plasma Lance > --- INVENTORY -------- Reaction Control System Experimental Thermal Shield Improved Shock Absorption System Long-range Missile Launcher Advanced Remote Datajack [Rating: 209] Favorites ----------- Power Cold Fusion Reactor Engine Heavy Deuterium Engine Power Core Light Nuclear Core Reactor Cold Fusion Reactor Propulsion Improved Airjet Treads Light Treads Hover Unit Improved Airjet Utility Experimental Utility Shielding Device Nanoactuators Storage Compact Battery Processor Melee Analysis Suite Hackware Improved Hacking Suite Protection Experimental Utility Shielding Weapon Plasma Sword Energy Gun Medium Laser Energy Cannon Beam Cannon Ballistic Gun Heavy Assault Rifle Launcher Long-range Missile Launcher Special Weapon Field Lobotomy Kit Impact Weapon Thunder Hammer Slashing Weapon Plasma Sword Piercing Weapon Force Lance Build | -11 -10 -10 -9 -9 -9 -8 -8 -7 -7 -7 -7 -6 -6 -6 -6 -6 -5 -5 -5 -5 -5 -4 -4 -4 -4 -4 -4 -4 -4 -3 -3 -3 -2 -1 -1 ------- Run | Scr Mat Min Mat Min Exi Min Mat Fac Low Low Dat Pro Fac Low Low Zio Pro Fac Upp Upp War Pro Fac Was Fac Ext Cet Arc Hub Res Gar Res Res Acc Com Slots Evolved 22 | 3 . 2 2 . 1 . 2 1 1 . 1 . 1 . . . 1 2 . 1 . 1 1 . . . . . . 1 . . 1 . . Power 2 | . . . . . . . 1 . . . . . . . . . . . . . . 1 . . . . . . . . . . . . . Propulsion 5 | 1 . 1 . . . . . 1 . . . . 1 . . . . . . 1 . . . . . . . . . . . . . . . Utility 10 | 1 . 1 2 . . . 1 . 1 . . . . . . . 1 1 . . . . 1 . . . . . . . . . 1 . . Weapon 5 | 1 . . . . 1 . . . . . 1 . . . . . . 1 . . . . . . . . . . . 1 . . . . . Parts Attached 181 | 5 6 2 22 . 1 2 6 7 2 . 1 3 18 . . 9 4 4 2 5 6 1 6 . 9 8 1 1 10 22 . 8 7 1 2 Power 17 | 1 . . 3 . . . 1 2 1 . . 1 5 . . . . . . . 1 1 . . . . . 1 . . . . . . . Engine 8 | 1 . . 3 . . . 1 . . . . 1 2 . . . . . . . . . . . . . . . . . . . . . . Core 4 | . . . . . . . . 2 1 . . . 1 . . . . . . . . . . . . . . . . . . . . . . Reactor 5 | . . . . . . . . . . . . . 2 . . . . . . . 1 1 . . . . . 1 . . . . . . . Propulsion 37 | 2 2 1 4 . . . 1 1 . . . . 4 . . 1 . 1 . 1 2 . . . 5 1 . . . 5 . 2 3 . 1 Treads 2 | 2 . . . . . . . . . . . . . . . . . . . . . . . . . . . . . . . . . . . Leg . | . . . . . . . . . . . . . . . . . . . . . . . . . . . . . . . . . . . . Wheel . | . . . . . . . . . . . . . . . . . . . . . . . . . . . . . . . . . . . . Hover 35 | . 2 1 4 . . . 1 1 . . . . 4 . . 1 . 1 . 1 2 . . . 5 1 . . . 5 . 2 3 . 1 Flight . | . . . . . . . . . . . . . . . . . . . . . . . . . . . . . . . . . . . . Utility 84 | . 3 1 10 . . 2 4 2 1 . . . 5 . . 6 4 1 2 1 3 . 5 . 4 5 1 . 1 12 . 6 3 1 1 Device 44 | . 2 . 2 . . . . . . . . . 1 . . 3 2 . 2 1 3 . 3 . 4 5 . . 1 9 . 2 2 1 1 Storage 4 | . . 1 1 . . . . 1 . . . . . . . . . . . . . . . . . . . . . . . . 1 . . Processor 6 | . 1 . 1 . . . 1 . . . . . . . . . . 1 . . . . 2 . . . . . . . . . . . . Hackware 5 | . . . . . . 2 . . . . . . 1 . . 1 . . . . . . . . . . 1 . . . . . . . . Protection 25 | . . . 6 . . . 3 1 1 . . . 3 . . 2 2 . . . . . . . . . . . . 3 . 4 . . . Artifact . | . . . . . . . . . . . . . . . . . . . . . . . . . . . . . . . . . . . . Weapon 43 | 2 1 . 5 . 1 . . 2 . . 1 2 4 . . 2 . 2 . 3 . . 1 . . 2 . . 9 5 . . 1 . . Energy Gun 3 | 2 . . 1 . . . . . . . . . . . . . . . . . . . . . . . . . . . . . . . . Energy Cannon 2 | . 1 . 1 . . . . . . . . . . . . . . . . . . . . . . . . . . . . . . . . Ballistic Gun 1 | . . . 1 . . . . . . . . . . . . . . . . . . . . . . . . . . . . . . . . Ballistic Cannon . | . . . . . . . . . . . . . . . . . . . . . . . . . . . . . . . . . . . . Launcher 4 | . . . . . . . . . . . . . . . . . . . . 1 . . . . . . . . 3 . . . . . . Special Weapon 2 | . . . . . . . . . . . . . . . . . . . . . . . . . . 1 . . 1 . . . . . . Impact Weapon 1 | . . . . . . . . . . . . . . . . . . . . . . . . . . . . . . 1 . . . . . Slashing Weapon 14 | . . . 2 . 1 . . . . . 1 2 3 . . 1 . 1 . . . . 1 . . . . . . 2 . . . . . Piercing Weapon 16 | . . . . . . . . 2 . . . . 1 . . 1 . 1 . 2 . . . . . 1 . . 5 2 . . 1 . . Special Melee Weapon . | . . . . . . . . . . . . . . . . . . . . . . . . . . . . . . . . . . . . Unidentified Prototypes 24 | . . . . . . . . . . . . . 4 . . 2 1 . . . 3 . 3 . 1 . . . 1 5 . 3 1 . . Parts Lost 1 | . . . . . . . . . . . . . . . . . . . . . . . . . . . . . . . . . . . 1 Power . | . . . . . . . . . . . . . . . . . . . . . . . . . . . . . . . . . . . . Propulsion . | . . . . . . . . . . . . . . . . . . . . . . . . . . . . . . . . . . . . Utility 1 | . . . . . . . . . . . . . . . . . . . . . . . . . . . . . . . . . . . 1 Weapon . | . . . . . . . . . . . . . . . . . . . . . . . . . . . . . . . . . . . . Highest Loss Streak 1 | . . . . . . . . . . . . . . . . . . . . . . . . . . . . . . . . . . . 1 Average Slot Usage (%) 93 | . 77 100 90 100 100 100 97 91 100 100 100 97 89 94 94 94 94 94 95 95 95 95 94 95 95 95 95 95 94 89 88 88 89 92 92 Engine 3 | . 14 11 9 9 8 8 7 6 2 . . 4 5 5 5 5 5 4 4 4 2 . . . . . . . . . . . . . . Reactor 4 | . . . . . . . . . . . . . 2 5 5 5 5 4 4 4 4 8 8 8 8 8 8 8 8 8 8 8 7 7 7 Hover 22 | . 13 33 29 27 25 25 23 20 25 25 23 23 18 22 22 22 21 19 19 21 24 26 25 25 25 25 25 25 25 20 20 20 21 23 23 Device 13 | . 2 11 8 9 8 5 . . . . . . 4 5 5 9 13 14 14 14 18 17 16 16 17 25 25 25 25 28 28 24 22 23 24 Storage 2 | . . 11 9 9 8 8 7 6 6 6 5 5 2 . . . . . . . . . . . . . . . . . . . 2 3 3 Processor 5 | . 4 11 6 . . . 2 6 6 6 5 5 5 5 5 5 5 9 9 9 9 8 9 12 10 4 4 4 4 4 4 4 3 3 3 Hackware 4 | . . . . . . 2 7 6 6 6 5 5 7 11 11 6 5 4 4 4 4 4 4 4 4 4 4 4 4 4 4 4 3 3 3 Protection 12 | . . . 10 27 25 25 22 20 24 25 23 23 17 16 16 16 15 14 14 11 9 8 8 8 8 8 8 8 6 3 4 7 7 7 4 Slashing Weapon 14 | . . . 10 18 23 25 23 15 6 6 11 11 12 16 16 17 21 21 19 15 13 13 12 12 12 12 12 12 12 15 16 16 14 11 11 Piercing Weapon 4 | . . . . . . . . 3 12 12 11 8 4 5 5 3 . . 4 6 9 8 8 8 8 7 8 8 7 4 4 4 4 7 7 Naked Turns . | . . . . . . . . . . . . . . . . . . . . . . . . . . . . . . . . . . . . Heaviest Build 111 | 7 9 12 23 23 26 26 29 34 38 38 41 46 54 54 54 57 75 81 85 81 85 97 99 99 106 111 106 106 111 98 95 101 104 104 102 Greatest Support 178 | 40 40 18 27 27 32 32 34 45 45 45 45 45 80 80 80 80 80 85 85 97 103 103 103 103 105 110 107 107 107 156 124 127 144 178 174 Greatest Overweight (x) 1 | . . . . . . . . . . . . 1 1 . . . . . . . 1 . . . 1 1 . . 1 . . . . . . Average Overweight (x) . | . . . . . . . . . . . . . . . . . . . . . . . . . . . . . . . . . . . . Largest Inventory Capacity 6 | 2 2 2 2 2 2 2 3 3 3 3 3 4 4 4 4 5 5 5 5 5 5 5 5 5 5 6 6 6 6 6 6 6 6 6 6 Average Capacity 4 | 2 2 2 2 2 2 2 2 3 3 3 3 3 4 4 4 4 5 5 5 5 5 5 5 5 5 5 6 6 6 6 6 6 6 6 6 Most Carried 6 | 1 2 2 2 2 2 2 2 3 3 3 3 4 4 3 4 5 5 5 5 5 5 5 5 5 5 6 6 6 6 6 6 6 6 6 6 Average Carried 4 | . 1 1 1 2 1 2 2 2 2 3 2 3 3 3 3 4 4 4 5 4 5 4 5 5 4 5 6 6 5 5 6 6 5 5 5 Final Capacity 6 | 2 2 2 2 2 2 2 3 3 3 3 3 4 4 4 4 5 5 5 5 5 5 5 5 5 5 6 6 6 6 6 6 6 6 6 6 Final Carried 6 | 1 2 1 2 2 2 2 2 3 3 3 2 4 3 3 4 5 5 5 5 5 5 5 5 5 5 6 6 6 4 6 6 6 6 6 5 Class Distribution -------------------- 45% | Hacker-Mutant 13% | Hacker-Gladiator 11% | Mutant 10% | Scavenger-Mutant 10% | Hacker-Sprinter 3% | Commander-Mutant Dominant Class ---------------- Mutant | -10/Materials Mutant | -10/Mines Scavenger-Mutant | -9/Materials Scavenger-Mutant | -9/Mines Scavenger-Mutant | -9/Exiles Scavenger-Scout | -8/Mines Scavenger-Mutant | -8/Materials Mutant | -7/Factory Scavenger-Mutant | -7/Lower Caves Scavenger-Mutant | -7/Lower Caves Scavenger-Mutant | -7/Data Miner Hacker-Gladiator | -6/Proximity Caves Hacker-Mutant | -6/Factory Hacker-Mutant | -6/Lower Caves Hacker-Mutant | -6/Lower Caves Hacker-Mutant | -6/Zion Hacker-Mutant | -5/Proximity Caves Hacker-Mutant | -5/Factory Hacker-Mutant | -5/Upper Caves Hacker-Mutant | -5/Upper Caves Hacker-Mutant | -5/Warlord Hacker-Mutant | -4/Proximity Caves Hacker-Mutant | -4/Factory Hacker-Mutant | -4/Waste Hacker-Mutant | -4/Factory Commander-Mutant | -4/Extension Hacker-Sprinter | -4/Cetus Hacker-Sprinter | -4/Archives Hacker-Sprinter | -4/Hub_04(d) Hacker-Mutant | -3/Research Hacker-Gladiator | -3/Garrison Hacker-Gladiator | -3/Research Hacker-Sprinter | -2/Research Hacker-Sprinter | -1/Access Generator-Gladiator | -1/Command Resources | -11 -10 -10 -9 -9 -9 -8 -8 -7 -7 -7 -7 -6 -6 -6 -6 -6 -5 -5 -5 -5 -5 -4 -4 -4 -4 -4 -4 -4 -4 -3 -3 -3 -2 -1 -1 ----------- Run | Scr Mat Min Mat Min Exi Min Mat Fac Low Low Dat Pro Fac Low Low Zio Pro Fac Upp Upp War Pro Fac Was Fac Ext Cet Arc Hub Res Gar Res Res Acc Com Matter Collected 2274 | 242 58 30 220 . . 30 50 80 20 . . 40 160 30 . 70 60 30 30 80 . 70 60 . 145 122 26 10 181 220 . 86 70 10 44 Remotely . | . . . . . . . . . . . . . . . . . . . . . . . . . . . . . . . . . . . . Salvage Created 27863 | . 303 . 1147 101 . 221 224 281 146 . . 202 1408 79 262 . 1361 1204 280 210 . 1636 719 . 1941 2158 757 362 2956 1317 959 2502 841 1746 2540 Parts 1224 | . 21 . 61 3 . 13 15 24 13 . . 11 34 13 3 . 65 42 25 13 . 67 42 . 79 123 27 14 120 56 27 94 37 107 75 Haulers Intercepted 23 | . 1 . 2 . . . 2 . . . . . 3 . . . 1 1 . . . . 1 . 2 2 . . 2 3 . 2 . 1 . Recyclers Shooed 5 | . 1 . . . . . 1 1 . . . . 1 . . . . 1 . . . . . . . . . . . . . . . . . Parts Field Recycled . | . . . . . . . . . . . . . . . . . . . . . . . . . . . . . . . . . . . . Retrieved Matter . | . . . . . . . . . . . . . . . . . . . . . . . . . . . . . . . . . . . . Parts Self-Destructed 224 | . . . . . . . . . 5 . . 23 . 13 2 2 67 . 24 15 3 70 . . . . . . . . . . . . . Prevented 12 | . . . . . . . . . . . . 1 . . . . . . 1 . 10 . . . . . . . . . . . . . . Kills | -11 -10 -10 -9 -9 -9 -8 -8 -7 -7 -7 -7 -6 -6 -6 -6 -6 -5 -5 -5 -5 -5 -4 -4 -4 -4 -4 -4 -4 -4 -3 -3 -3 -2 -1 -1 ------- Run | Scr Mat Min Mat Min Exi Min Mat Fac Low Low Dat Pro Fac Low Low Zio Pro Fac Upp Upp War Pro Fac Was Fac Ext Cet Arc Hub Res Gar Res Res Acc Com Combat Hostiles Destroyed 345 | . 9 . 23 5 . 3 2 7 4 . . 5 5 4 . . 25 8 9 12 . 26 10 . 20 35 11 4 20 14 9 21 10 28 16 Melee 322 | . . . 15 5 . 3 2 7 4 . . 5 5 4 . . 25 8 9 9 . 26 10 . 20 35 11 4 17 14 9 21 10 28 16 Guns 12 | . 9 . 3 . . . . . . . . . . . . . . . . . . . . . . . . . . . . . . . . Cannons 5 | . . . 5 . . . . . . . . . . . . . . . . . . . . . . . . . . . . . . . . AOE 4 | . . . . . . . . . . . . . . . . . . . . 3 . . . . . . . . 1 . . . . . . Classes Destroyed 21 | . 6 . 5 1 . 1 . 1 3 . . . . . . . . . 1 . . 1 . . . . . . . . 1 . 1 . . Worker 20 | . 1 . 1 . . 1 . . . . . . . . . . . 2 . . . . . . 3 . . . 8 1 . 2 . 1 . Builder 13 | . 1 . . . . . . . . . . . . . . . . . . . . . . . 1 1 . . 8 . . 1 1 . . Tunneler 3 | . . . . . . 2 . . . . . . . . . . . . . . . . . . . . . . 1 . . . . . . Hauler 23 | . 1 . 2 . . . 2 . . . . . 3 . . . 1 1 . . . . 1 . 2 2 . . 2 3 . 2 . 1 . Recycler 28 | . . . 2 . . 2 . . . . . . 5 . . . . 4 . . . . . . 3 2 . . 6 2 . 2 . . . Carrier 1 | . . . . . . . . . . . . . . . . . . . . . . . . . . . . . . . 1 . . . . Operator 10 | . 1 . 1 . . . 1 1 . . . . 1 . . . . . . . . . . . 1 1 . . . . . 1 . 2 . Watcher 36 | . . . 2 . . . 1 . . . . . 1 . . . . 3 . . . . 3 . 2 3 2 . 4 4 . 4 2 4 1 Swarmer 65 | . 6 . 4 3 . 3 . . . . . 1 . 3 . . 2 . . 12 . 1 . . . 6 . . . . 7 2 . 15 . Grunt 94 | . 3 . 12 . . . . 3 . . . 1 1 . . . 12 5 3 . . 14 5 . 6 12 4 . 3 4 . 5 1 . . Brawler 12 | . . . 1 . . . . . . . . 1 . . . . 2 . 1 . . 3 . . . . . . 1 . . 1 . . 2 Duelist 11 | . . . 2 . . . . . . . . 1 . . . . 3 . . . . 2 . . . . . . . . . . 2 . 1 Protector 4 | . . . . . . . . . . . . . . . . . . . . . . 1 . . . . . . 2 . . . 1 . . Sentry 69 | . . . 4 . . . 2 3 . . . . 1 1 . . 2 3 1 . . 2 3 . 4 9 . 4 5 5 2 9 4 3 2 Demolisher 3 | . . . . 2 . . . . . . . . . . . . . . . . . . . . . . . . . . . . 1 . . Hunter 42 | . . . . . . . . . 1 . . 1 2 . . . 4 . 3 . . 2 . . 6 4 2 . 4 3 . . . 5 5 Programmer 28 | . . . . . . . . 1 1 . . . 1 . . . . . . . . 1 2 . 4 3 . . 2 2 . 4 . 5 2 Behemoth 2 | . . . . . . . . . . . . . . . . . . . 1 . . . . . . 1 . . . . . . . . . Cetus Guard 5 | . . . . . . . . . . . . . . . . . . . . . . . . . . . 5 . . . . . . . . M Guard 2 | . . . . . . . . . . . . . . . . . . . . . . . . . . . . . . . . . . . 2 Lightning 3 | . . . . . . . . . . . . . . . . . . . . . . . . . . . . . 3 . . . . . . Combat Programmer 2 | . . . . . . . . . . . . . . . . . . . . . . . . . . . . . . . . . . . 2 Striker 1 | . . . . . . . . . . . . . . . . . . . . . . . . . . . . . . . . . 1 . . Thief 1 | . . . . . . . . . 1 . . . . . . . . . . . . . . . . . . . . . . . . . . Butcher 1 | . . . . . . . . . . . . . . . . . . . . . . . . . . . . . 1 . . . . . . Mutant 1 | . . . . . . . . . 1 . . . . . . . . . . . . . . . . . . . . . . . . . . Best Kill Streak 34 | . 5 . 13 3 . 6 2 2 1 . . 2 4 3 . . 9 5 4 4 . 7 3 . 7 15 10 4 34 5 5 6 7 10 6 Combat Bots Only 9 | . 3 . 6 3 . 3 1 2 1 . . 2 2 3 . . 9 3 4 4 . 7 3 . 5 7 6 4 6 4 3 5 7 9 6 Max Kills in Single Turn 13 | . 2 . 1 1 . 1 1 1 1 . . 1 1 1 . . 1 1 1 2 . 1 1 . 1 1 1 1 13 1 1 1 1 2 3 Gunslinging 1 | . 1 . . . . . . . . . . . . . . . . . . . . . . . . . . . . . . . . . . Exploded 2 | . . . . . . . . . . . . . . . . . . . . 2 . . . . . . . . 1 . . . . . . Melee 3 | . . . 1 1 . 1 1 1 1 . . 1 1 1 . . 1 1 1 1 . 1 1 . 1 1 1 1 1 1 1 1 1 2 3 Uniques/NPCs Destroyed . | . . . . . . . . . . . . . . . . . . . . . . . . . . . . . . . . . . . . Combat | -11 -10 -10 -9 -9 -9 -8 -8 -7 -7 -7 -7 -6 -6 -6 -6 -6 -5 -5 -5 -5 -5 -4 -4 -4 -4 -4 -4 -4 -4 -3 -3 -3 -2 -1 -1 -------- Run | Scr Mat Min Mat Min Exi Min Mat Fac Low Low Dat Pro Fac Low Low Zio Pro Fac Upp Upp War Pro Fac Was Fac Ext Cet Arc Hub Res Gar Res Res Acc Com Damage Taken 13191 | . 338 . 801 352 . 49 90 624 64 . . 432 532 110 . . 1026 260 553 167 . 780 216 . 613 515 234 189 1318 184 59 326 89 781 2489 Core 8106 | . 260 . 630 268 . 30 62 373 38 . . 297 264 65 . . 623 127 301 84 . 452 143 . 319 241 123 117 762 128 46 203 35 500 1615 Absorbed by Shields 6237 | . . . . . . . . . . . . . . . . . 425 . 270 153 . 815 224 . 645 546 246 111 717 190 61 336 91 819 588 Redirected to Core 6809 | . 231 . 479 127 . 22 47 312 38 . . 269 247 53 . . 553 110 277 77 . 410 110 . 261 189 111 105 638 81 37 159 27 426 1413 Core Remaining (%) 96 | 100 . 94 . . . 91 97 . . . . 94 . . . . 100 . . . . 100 . . . . . . 86 . . 100 100 . . Volleys Fired 76 | . 38 . 28 . . . . . . . . . . . . . . . . 2 . . . . . 1 . . 7 . . . . . . Largest 2 | . 2 . 2 . . . . . . . . . . . . . . . . 1 . . . . . 1 . . 1 . . . . . . Hottest 110 | . 110 . 110 . . . . . . . . . . . . . . . . 43 . . . . . . . . 43 . . . . . . Shots Fired 133 | . 74 . 49 . . . . . . . . . . . . . . . . 2 . . . . . 1 . . 7 . . . . . . Gun 86 | . 65 . 21 . . . . . . . . . . . . . . . . . . . . . . . . . . . . . . . . Cannon 37 | . 9 . 28 . . . . . . . . . . . . . . . . . . . . . . . . . . . . . . . . Launcher 5 | . . . . . . . . . . . . . . . . . . . . 2 . . . . . . . . 3 . . . . . . Special 5 | . . . . . . . . . . . . . . . . . . . . . . . . . . 1 . . 4 . . . . . . Kinetic . | . . . . . . . . . . . . . . . . . . . . . . . . . . . . . . . . . . . . Thermal 123 | . 74 . 49 . . . . . . . . . . . . . . . . . . . . . . . . . . . . . . . . Explosive 5 | . . . . . . . . . . . . . . . . . . . . 2 . . . . . . . . 3 . . . . . . Electromagnetic . | . . . . . . . . . . . . . . . . . . . . . . . . . . . . . . . . . . . . Robot Hit Streak 21 | . 21 . 19 . . . . . . . . . . . . . . . . 1 . . . . . 2 . . 6 . . . . . . Robot Miss Streak 4 | . 4 . 3 . . . . . . . . . . . . . . . . 1 . . . . . . . . . . . . . . . Penetration Max . | . . . . . . . . . . . . . . . . . . . . . . . . . . . . . . . . . . . . Secondary Targets 1 | . 1 . . . . . . . . . . . . . . . . . . . . . . . . . . . . . . . . . . Max Gunslinging Chain 1 | . 1 . . . . . . . . . . . . . . . . . . . . . . . . . . . . . . . . . . Shots Hit Robots 1550 | . 59 . 91 11 . 12 19 30 15 . . 18 48 4 6 1 101 46 44 25 . 99 46 . 89 144 57 14 107 73 26 110 56 92 107 Core Hits 701 | . 20 . 38 6 . 7 6 11 7 . . 10 20 4 3 . 37 24 14 15 . 51 22 . 41 63 24 7 79 28 16 41 21 43 43 Critical Hits 69 | . . . 1 . . . 2 . 2 . . . . . 1 . 4 2 4 2 . 2 . . 7 10 7 1 3 3 3 4 1 4 6 Critical Kills 28 | . . . 1 . . . 2 . 1 . . . . . 1 . 1 . 2 1 . . . . 2 4 4 1 2 1 2 1 . 1 1 Critical Parts Destroyed 32 | . . . . . . . . . 1 . . . . . . . 2 2 1 1 . 1 . . 5 4 3 . 1 2 1 2 1 2 3 Melee Attacks 1883 | . . . 59 17 . 13 21 45 21 . . 18 66 5 8 1 114 68 47 35 . 112 70 . 118 173 64 15 118 118 43 140 81 134 159 Impact . | . . . . . . . . . . . . . . . . . . . . . . . . . . . . . . . . . . . . Slashing 1543 | . . . 59 17 . 13 21 33 7 . . 8 60 4 6 1 114 68 42 30 . 93 59 . 96 130 48 8 84 103 37 120 71 104 107 Piercing 340 | . . . . . . . . 12 14 . . 10 6 1 2 . . . 5 5 . 19 11 . 22 43 16 7 34 15 6 20 10 30 52 Sneak Attacks 134 | . . . 9 . . 7 4 1 1 . . . 10 . . . 7 12 . . . 3 4 . 15 12 . . 11 19 1 12 2 4 . Combat Hostiles 16 | . . . 1 . . . . . 1 . . . . . . . 3 2 . . . . 2 . . 1 . . . 4 1 . 1 . . Follow-up Attacks 580 | . . . 1 3 . 2 2 6 4 . . 5 8 . 1 . 32 17 19 12 . 36 17 . 27 68 28 8 48 38 10 53 28 48 59 Damage Inflicted 103759 | . 835 . 2884 734 . 895 1025 1114 750 . . 654 3097 199 685 57 5078 3194 1992 1856 . 4616 2700 . 6786 9117 3229 828 9922 6791 2492 9117 4024 7026 12062 Guns 918 | . 693 . 225 . . . . . . . . . . . . . . . . . . . . . . . . . . . . . . . . Cannons 528 | . 142 . 386 . . . . . . . . . . . . . . . . . . . . . . . . . . . . . . . . Explosions 3547 | . . . . . . . . . . . . . . . . . . . . 507 . . . . . . . . 3040 . . . . . . Melee 98766 | . . . 2273 734 . 895 1025 1114 750 . . 654 3097 199 685 57 5078 3194 1992 1349 . 4616 2700 . 6786 9117 3229 828 6882 6791 2492 9117 4024 7026 12062 Ramming . | . . . . . . . . . . . . . . . . . . . . . . . . . . . . . . . . . . . . Kinetic . | . . . . . . . . . . . . . . . . . . . . . . . . . . . . . . . . . . . . Thermal 1574 | . 835 . 611 . . . . . . . . . . . . . . . . . . . . . . . . . 128 . . . . . . Explosive 564 | . . . . . . . . . . . . . . . . . . . . 507 . . . . . . . . 57 . . . . . . Electromagnetic 2855 | . . . . . . . . . . . . . . . . . . . . . . . . . . . . . 2855 . . . . . . Impact . | . . . . . . . . . . . . . . . . . . . . . . . . . . . . . . . . . . . . Slashing 85663 | . . . 2273 734 . 895 1025 805 167 . . 308 2926 153 601 57 5078 3194 1753 1129 . 4064 2369 . 5986 7405 2608 506 5447 6197 2272 8525 3705 6249 9232 Piercing 13103 | . . . . . . . . 309 583 . . 346 171 46 84 . . . 239 220 . 552 331 . 800 1712 621 322 1435 594 220 592 319 777 2830 Highest Corruption 24 | . . . 1 1 1 1 . 1 1 1 1 1 5 5 5 5 . . . . . . . 5 8 9 9 9 24 2 2 6 . 7 9 Average Corruption 4 | . . . 1 1 1 1 . 1 1 1 1 1 5 5 5 5 . . . . . . . 5 5 8 9 9 14 2 2 2 . 1 8 Corruption Purged . | . . . . . . . . . . . . . . . . . . . . . . . . . . . . . . . . . . . . Effects 183 | . . . 2 . . 4 . . 3 1 . 4 . 9 3 . . . . . . . . 1 32 25 12 4 35 2 2 12 . 6 26 Message Errors 48 | . . . 1 . . 3 . . 3 . . 1 . 4 1 . . . . . . . . . 12 7 4 1 3 . . 2 . . 6 Matter Fused 24 | . . . . . . . . . . . . . . 1 . . . . . . . . . 1 6 5 2 . 5 . . 1 . 1 2 Heat Flow Errors 15 | . . . . . . . . . . . . . . 3 . . . . . . . . . . 4 2 . . 2 . 1 1 . 1 1 Energy Discharges 16 | . . . 1 . . 1 . . . 1 . 2 . 1 . . . . . . . . . . 2 2 . . 4 . . . . . 2 Parts Rejected 2 | . . . . . . . . . . . . . . . . . . . . . . . . . . . . 1 1 . . . . . . Data Loss (minor) 15 | . . . . . . . . . . . . 1 . . 2 . . . . . . . . . 3 2 1 2 2 . . . . 1 1 Data Loss (major) 2 | . . . . . . . . . . . . . . . . . . . . . . . . . 1 1 . . . . . . . . . Misdirections 2 | . . . . . . . . . . . . . . . . . . . . . . . . . . . . . 2 . . . . . . Targeting Errors 59 | . . . . . . . . . . . . . . . . . . . . . . . . . 4 6 5 . 16 2 1 8 . 3 14 Overload Shots . | . . . . . . . . . . . . . . . . . . . . . . . . . . . . . . . . . . . . Overflow Damage 11817 | . 3 . 223 263 . 265 272 114 132 . . 3 400 . 264 . 315 252 38 180 . 218 173 . 828 881 94 . 991 1384 289 1579 579 891 1186 Projectiles 3 | . 3 . . . . . . . . . . . . . . . . . . . . . . . . . . . . . . . . . . Explosions 248 | . . . . . . . . . . . . . . . . . . . . 79 . . . . . . . . 169 . . . . . . Melee 11566 | . . . 223 263 . 265 272 114 132 . . 3 400 . 264 . 315 252 38 101 . 218 173 . 828 881 94 . 822 1384 289 1579 579 891 1186 Knockbacks . | . . . . . . . . . . . . . . . . . . . . . . . . . . . . . . . . . . . . Impact . | . . . . . . . . . . . . . . . . . . . . . . . . . . . . . . . . . . . . Kinetic . | . . . . . . . . . . . . . . . . . . . . . . . . . . . . . . . . . . . . Secondary . | . . . . . . . . . . . . . . . . . . . . . . . . . . . . . . . . . . . . Self-Inflicted Damage 355 | . . . . . . . . . . . . . . . . . . . . . . . . . . . . . 355 . . . . . . Shots 5 | . . . . . . . . . . . . . . . . . . . . . . . . . . . . . 5 . . . . . . Rammed . | . . . . . . . . . . . . . . . . . . . . . . . . . . . . . . . . . . . . Targets Rammed . | . . . . . . . . . . . . . . . . . . . . . . . . . . . . . . . . . . . . Kicked . | . . . . . . . . . . . . . . . . . . . . . . . . . . . . . . . . . . . . Crushed . | . . . . . . . . . . . . . . . . . . . . . . . . . . . . . . . . . . . . Highest Temperature 336 | . 336 . 24 . . . . 8 10 . . 23 1 233 . . 3 . . . . . . . 238 169 . 1 146 . 110 87 . 172 259 Average Temperature 67 | . 101 . 9 . . . . 5 10 . . 14 1 111 . . 3 . . . . . . . 58 52 . 1 73 . 74 55 . 92 88 Received Heat Transfer 1505 | . 90 . 54 . . . 36 156 20 . . 117 69 6 . . 265 81 97 . . 111 54 . 71 86 52 33 30 12 4 37 8 8 8 Siege Activations . | . . . . . . . . . . . . . . . . . . . . . . . . . . . . . . . . . . . . Robots Corrupted 5 | . . . . . . . . . . . . . . . . . . . . . . . . . . . . . 5 . . . . . . Combat Hostiles 2 | . . . . . . . . . . . . . . . . . . . . . . . . . . . . . 2 . . . . . . Parts Fried 26 | . . . . . . . . . . . . . . . . . . . 2 . . . . . . . . . 24 . . . . . . Impact Corruptions . | . . . . . . . . . . . . . . . . . . . . . . . . . . . . . . . . . . . . Robots Melted . | . . . . . . . . . . . . . . . . . . . . . . . . . . . . . . . . . . . . Combat Hostiles . | . . . . . . . . . . . . . . . . . . . . . . . . . . . . . . . . . . . . Parts Melted 9 | . 4 . 5 . . . . . . . . . . . . . . . . . . . . . . . . . . . . . . . . Heat Transferred 3961 | . 2331 . 1480 . . . . . . . . . . . . . . . . . . . . . . . . . 150 . . . . . . Parts Sabotaged . | . . . . . . . . . . . . . . . . . . . . . . . . . . . . . . . . . . . . Parts Stolen . | . . . . . . . . . . . . . . . . . . . . . . . . . . . . . . . . . . . . Parts Stripped . | . . . . . . . . . . . . . . . . . . . . . . . . . . . . . . . . . . . . Power Chain Reactions 6 | . . . . . . . . . . . . . . . . . . . . . . . . . . . . . 6 . . . . . . Missiles Intercepted . | . . . . . . . . . . . . . . . . . . . . . . . . . . . . . . . . . . . . Alert | -11 -10 -10 -9 -9 -9 -8 -8 -7 -7 -7 -7 -6 -6 -6 -6 -6 -5 -5 -5 -5 -5 -4 -4 -4 -4 -4 -4 -4 -4 -3 -3 -3 -2 -1 -1 ------- Run | Scr Mat Min Mat Min Exi Min Mat Fac Low Low Dat Pro Fac Low Low Zio Pro Fac Upp Upp War Pro Fac Was Fac Ext Cet Arc Hub Res Gar Res Res Acc Com Peak Influence 1799 | . 322 . 552 349 . 95 206 214 . . . . 482 . . . . 605 . . . . 519 177 426 1347 1209 666 1799 1277 1359 1283 868 1268 1203 Initial 1100 | . . . . 214 . . 37 15 . . . . 79 . . . . 296 . . . . 242 132 109 176 753 483 233 1100 969 764 721 516 784 Average 511 | . 128 . 372 315 . 40 88 69 . . . . 264 . . . . 375 . . . . 294 151 260 549 1003 640 1003 1072 1160 946 730 831 1027 Maximum Alert Level 5 | . 1 . 2 1 . . 1 1 . . . . 2 . . . . 2 . . . . 2 . 2 4 4 2 5 4 4 4 3 4 4 Low Security (%) 25 | 100 66 100 21 . . 100 93 98 . . . . 32 . . . . 7 . . . . 25 100 32 1 . . . . . . . . . Level 1 22 | . 33 . 21 100 . . 6 1 . . . . 30 . . . . 46 . . . . 53 . 64 29 . . 15 . . . . . . Level 2 20 | . . . 56 . . . . . . . . . 37 . . . . 45 . . . . 20 . 2 49 . 100 9 . . 14 25 38 . Level 3 18 | . . . . . . . . . . . . . . . . . . . . . . . . . . 9 61 . 21 52 37 56 74 42 44 Level 4 12 | . . . . . . . . . . . . . . . . . . . . . . . . . . 9 38 . 37 47 62 29 . 18 55 Level 5 . | . . . . . . . . . . . . . . . . . . . . . . . . . . . . . 8 . . . . . . High Security . | . . . . . . . . . . . . . . . . . . . . . . . . . . . . . 6 . . . . . . Max Security . | . . . . . . . . . . . . . . . . . . . . . . . . . . . . . . . . . . . . Squads Dispatched 49 | . 1 . 2 . . . 1 6 . . . . 6 . . . 1 2 . . . 1 2 . 5 3 . . 4 3 . 3 1 5 3 Investigation 9 | . . . . . . . . 2 . . . . 1 . . . . 1 . . . . . . 1 1 . . . . . . . 2 1 Extermination 11 | . . . . . . . . 1 . . . . 2 . . . . . . . . . 1 . 2 . . . 1 1 . 1 . 1 1 Reinforcement 19 | . 1 . 2 . . . 1 3 . . . . 3 . . . . 1 . . . . 1 . 2 . . . 1 1 . 1 1 1 . Assault 9 | . . . . . . . . . . . . . . . . . 1 . . . . 1 . . . 2 . . 2 . . 1 . 1 1 Garrison 1 | . . . . . . . . . . . . . . . . . . . . . . . . . . . . . . 1 . . . . . Intercept . | . . . . . . . . . . . . . . . . . . . . . . . . . . . . . . . . . . . . Construction Impeded 1 | . . . . . . . . . . . . . . . . . . . . . . . . . . . . . 1 . . . . . . Haulers Reinforced 5 | . . . . . . . . . . . . . 2 . . . . 1 . . . . 1 . 1 . . . . . . . . . . Stealth | -11 -10 -10 -9 -9 -9 -8 -8 -7 -7 -7 -7 -6 -6 -6 -6 -6 -5 -5 -5 -5 -5 -4 -4 -4 -4 -4 -4 -4 -4 -3 -3 -3 -2 -1 -1 --------- Run | Scr Mat Min Mat Min Exi Min Mat Fac Low Low Dat Pro Fac Low Low Zio Pro Fac Upp Upp War Pro Fac Was Fac Ext Cet Arc Hub Res Gar Res Res Acc Com Distress Signals 32 | . 5 . 4 . . . . . . . . . . . . . . . . . . . 1 . 2 3 2 . 2 1 . 1 5 4 2 Communications Jammed . | . . . . . . . . . . . . . . . . . . . . . . . . . . . . . . . . . . . . Distress Signals . | . . . . . . . . . . . . . . . . . . . . . . . . . . . . . . . . . . . . Times Spotted 569 | . 19 . 42 8 . 3 5 11 6 3 . 18 10 4 . 1 33 11 9 16 . 31 16 6 25 51 16 4 46 23 9 34 16 49 44 Peak Tracking Total 28 | . 6 . 7 4 . 2 3 3 2 . . 10 2 3 . 1 7 2 4 5 . 11 5 6 6 7 5 3 11 3 4 7 5 19 28 Tactical Retreats 25 | . . . 2 1 . . . 1 2 . . 1 . . . . 4 . . 1 . 2 2 . . 2 . . 1 . 1 2 2 1 . Traps | -11 -10 -10 -9 -9 -9 -8 -8 -7 -7 -7 -7 -6 -6 -6 -6 -6 -5 -5 -5 -5 -5 -4 -4 -4 -4 -4 -4 -4 -4 -3 -3 -3 -2 -1 -1 ------- Run | Scr Mat Min Mat Min Exi Min Mat Fac Low Low Dat Pro Fac Low Low Zio Pro Fac Upp Upp War Pro Fac Was Fac Ext Cet Arc Hub Res Gar Res Res Acc Com Traps Triggered 13 | . . . 1 . . . . 1 . . . . . . . . . 1 . . . . 1 . . . . . . 3 1 3 . 2 . Indirectly . | . . . . . . . . . . . . . . . . . . . . . . . . . . . . . . . . . . . . Trap Hack Attempts . | . . . . . . . . . . . . . . . . . . . . . . . . . . . . . . . . . . . . Triggered . | . . . . . . . . . . . . . . . . . . . . . . . . . . . . . . . . . . . . Disarmed . | . . . . . . . . . . . . . . . . . . . . . . . . . . . . . . . . . . . . Reprogrammed . | . . . . . . . . . . . . . . . . . . . . . . . . . . . . . . . . . . . . Reused . | . . . . . . . . . . . . . . . . . . . . . . . . . . . . . . . . . . . . Traps Extracted . | . . . . . . . . . . . . . . . . . . . . . . . . . . . . . . . . . . . . Installed . | . . . . . . . . . . . . . . . . . . . . . . . . . . . . . . . . . . . . Triggered 6 | . . . . . . . . . . . . . . . . . . . 1 . 3 2 . . . . . . . . . . . . . Machines | -11 -10 -10 -9 -9 -9 -8 -8 -7 -7 -7 -7 -6 -6 -6 -6 -6 -5 -5 -5 -5 -5 -4 -4 -4 -4 -4 -4 -4 -4 -3 -3 -3 -2 -1 -1 ---------- Run | Scr Mat Min Mat Min Exi Min Mat Fac Low Low Dat Pro Fac Low Low Zio Pro Fac Upp Upp War Pro Fac Was Fac Ext Cet Arc Hub Res Gar Res Res Acc Com Machines Disabled 21 | . . . . . . . . . 1 . . . . . . . . . . . . . . . . . 1 . 15 . 2 . . 2 . Max in Single Turn 13 | . . . . . . . . . 1 . . . . . . . . . . . . . . . . . . . 13 . 1 . . 1 . Garrison Access 10 | . . . . . . . . . . . . . 1 . . . . 1 . . . . 1 . . . . . 1 1 . 2 2 1 . Garrison Relay 2 | . . . . . . . . . . . . . . . . . . . . . . . . . . . . . . . 2 . . . . Network Hub 2 | . . . . . . . . . . . . . . . . . . . . . . . . . . . . . 2 . . . . . . Machines Sabotaged . | . . . . . . . . . . . . . . . . . . . . . . . . . . . . . . . . . . . . Garrisons Compromised . | . . . . . . . . . . . . . . . . . . . . . . . . . . . . . . . . . . . . Overloaded Fab Kills . | . . . . . . . . . . . . . . . . . . . . . . . . . . . . . . . . . . . . Fab Network Shutdowns 1 | . . . . . . . . . . . . . 1 . . . . . . . . . . . . . . . . . . . . . . Hacking | -11 -10 -10 -9 -9 -9 -8 -8 -7 -7 -7 -7 -6 -6 -6 -6 -6 -5 -5 -5 -5 -5 -4 -4 -4 -4 -4 -4 -4 -4 -3 -3 -3 -2 -1 -1 --------- Run | Scr Mat Min Mat Min Exi Min Mat Fac Low Low Dat Pro Fac Low Low Zio Pro Fac Upp Upp War Pro Fac Was Fac Ext Cet Arc Hub Res Gar Res Res Acc Com Machines Accessed 106 | . 3 . 7 . 2 . 6 6 . . 4 1 12 1 1 1 . 12 . . 3 . 6 . 7 5 3 1 4 8 . 4 2 5 2 Terminals 64 | . 3 . 5 . . . 5 4 . . . 1 6 . 1 . . 6 . . . . 3 . 6 5 3 . 3 4 . 2 1 4 2 Fabricators 7 | . . . . . . . . 1 . . . . 2 . . . . 3 . . . . . . 1 . . . . . . . . . . Repair Stations 4 | . . . 1 . . . . . . . . . . . . . . 1 . . . . 1 . . . . . . 1 . . . . . Recycling Units 4 | . . . . . . . 1 . . . . . 1 . . . . 1 . . . . 1 . . . . . . . . . . . . Scanalyzers 5 | . . . 1 . . . . 1 . . . . 2 . . . . . . . . . . . . . . . . 1 . . . . . Garrison Access 10 | . . . . . . . . . . . . . 1 . . . . 1 . . . . 1 . . . . . 1 2 . 2 1 1 . Total Hacks 408 | . 14 . 24 . 2 . 22 13 . . 27 1 48 1 1 5 . 36 . . 9 . 12 . 32 15 19 25 13 35 . 12 13 21 8 Successful 295 | . 7 . 12 . 2 . 15 5 . . 27 1 41 1 1 5 . 27 . . 9 . 7 . 25 9 16 25 8 24 . 7 9 10 2 Failed 112 | . 7 . 12 . . . 7 8 . . . . 7 . . . . 9 . . . . 5 . 7 6 2 . 5 11 . 5 4 11 6 Catastrophic 9 | . 1 . 3 . . . . . . . . . . . . . . . . . . . . . . 1 . . . 1 . . . . 3 Database Lockouts 1 | . . . . . . . . . . . . . . . . . . . . . . . . . . . 1 . . . . . . . . Manual 136 | . 8 . 5 . 1 . 16 7 . . . . 17 . 1 . . 10 . . 1 . 5 . 13 9 1 1 6 13 . 3 6 10 3 Terminals 269 | . 14 . 14 . . . 20 11 . . . 1 31 . 1 . . 24 . . . . 8 . 27 15 19 . 11 23 . 10 12 20 8 Fabricators 20 | . . . . . . . . 1 . . . . 7 . . . . 7 . . . . . . 5 . . . . . . . . . . Repair Stations 8 | . . . 4 . . . . . . . . . . . . . . 1 . . . . 1 . . . . . . 2 . . . . . Recycling Units 8 | . . . . . . . 2 . . . . . 2 . . . . 3 . . . . 1 . . . . . . . . . . . . Scanalyzers 20 | . . . 6 . . . . 1 . . . . 7 . . . . . . . . . . . . . . . . 6 . . . . . Garrison Access 14 | . . . . . . . . . . . . . 1 . . . . 1 . . . . 2 . . . . . 2 4 . 2 1 1 . Terminal Hacks 196 | . 6 . 4 . 2 . 9 3 . . 27 1 16 1 1 5 . 14 . . 9 . 3 . 14 5 16 25 5 12 . 3 6 7 2 Record 75 | . . . . . 1 . 1 . . . 11 1 3 . 1 . . . . . 9 . . . 1 . 15 25 1 3 . . . 3 . Part Schematic 18 | . . . . . . . . . . . 8 . 1 . . 5 . 2 . . . . . . 2 . . . . . . . . . . Robot Schematic 5 | . . . . . . . . . . . 5 . . . . . . . . . . . . . . . . . . . . . . . . Robot Analysis 10 | . . . . . . . 3 . . . . . 3 . . . . 2 . . . . 1 . . 1 . . . . . . . . . Prototype ID Bank 9 | . 1 . 1 . . . . . . . 3 . . . . . . 1 . . . . . . . . . . 1 1 . . 1 . . Open Door 3 | . . . . . . . . . . . . . . 1 . . . . . . . . 1 . . . 1 . . . . . . . . Level Access Points 3 | . . . . . . . 1 . . . . . . . . . . . . . . . . . . 1 . . . . . . . 1 . Branch Access Points 9 | . . . 1 . . . . 1 . . . . 1 . . . . 1 . . . . . . 1 . . . 1 1 . . 1 1 . Machine Index 1 | . . . . . . . . . . . . . . . . . . . . . . . . . 1 . . . . . . . . . . Terminal Index 4 | . 1 . . . . . . . . . . . 1 . . . . . . . . . . . . 1 . . . . . . 1 . . Fabricator Index 1 | . . . . . . . . . . . . . . . . . . . . . . . . . . . . . . . . 1 . . . Garrison Index 3 | . . . . . . . . . . . . . 1 . . . . . . . . . . . . . . . . 1 . . 1 . . Alert Level 8 | . 1 . 1 . . . 1 . . . . . . . . . . 1 . . . . . . 1 . . . 1 2 . . . . . Unreport Threat 16 | . 1 . . . . . 2 . . . . . 2 . . . . 2 . . . . 1 . 1 1 . . 1 2 . 1 1 1 . Locate Traps 18 | . 1 . 1 . . . . 2 . . . . . . . . . 4 . . . . . . 4 1 . . . 2 . 1 . 1 1 Security Status 2 | . . . . . . . . . . . . . 1 . . . . . . . . . . . 1 . . . . . . . . . . Surveillance Status 1 | . . . . . . . . . . . . . . . . . . . . . . . . . 1 . . . . . . . . . . Recall Investigation 1 | . . . . . . . . . . . . . 1 . . . . . . . . . . . . . . . . . . . . . . Recall Extermination 1 | . . . . . . . . . . . . . 1 . . . . . . . . . . . . . . . . . . . . . . Hauler Manifests 3 | . . . . . . . . . . . . . 1 . . . . 1 . . . . . . 1 . . . . . . . . . . Zone Layout 3 | . 1 . . . . . 1 . . . . . . . . . . . . . . . . . . . . . . . . . 1 . . EX-Prototype ID Bank 1 | . . . . . 1 . . . . . . . . . . . . . . . . . . . . . . . . . . . . . . Disengage Seal 1 | . . . . . . . . . . . . . . . . . . . . . . . . . . . . . . . . . . . 1 Fabricator Hacks 15 | . . . . . . . . . . . . . 4 . . . . 6 . . . . . . 5 . . . . . . . . . . Network Status 3 | . . . . . . . . . . . . . 1 . . . . 1 . . . . . . 1 . . . . . . . . . . Load Schematic 6 | . . . . . . . . . . . . . 1 . . . . 3 . . . . . . 2 . . . . . . . . . . Build 6 | . . . . . . . . . . . . . 2 . . . . 2 . . . . . . 2 . . . . . . . . . . Repair Station Hacks 4 | . . . 2 . . . . . . . . . . . . . . . . . . . . . . . . . . 2 . . . . . Scan Component 2 | . . . 1 . . . . . . . . . . . . . . . . . . . . . . . . . . 1 . . . . . Repair 2 | . . . 1 . . . . . . . . . . . . . . . . . . . . . . . . . . 1 . . . . . Recycling Unit Hacks 3 | . . . . . . . 1 . . . . . 1 . . . . 1 . . . . . . . . . . . . . . . . . Report Inventory 3 | . . . . . . . 1 . . . . . 1 . . . . 1 . . . . . . . . . . . . . . . . . Scanalyzer 16 | . . . 6 . . . . . . . . . 6 . . . . . . . . . . . . . . . . 4 . . . . . Insert Component 8 | . . . 3 . . . . . . . . . 3 . . . . . . . . . . . . . . . . 2 . . . . . Analyze 8 | . . . 3 . . . . . . . . . 3 . . . . . . . . . . . . . . . . 2 . . . . . Garrison Access Hacks 10 | . . . . . . . . . . . . . 1 . . . . 1 . . . . 1 . . . . . 1 2 . 2 1 1 . Unlock Access 1 | . . . . . . . . . . . . . . . . . . . . . . . . . . . . . . 1 . . . . . Seal Access 9 | . . . . . . . . . . . . . 1 . . . . 1 . . . . 1 . . . . . 1 1 . 2 1 1 . Unauthorized Hacks 51 | . 1 . . . . . 5 2 . . . . 13 . . . . 5 . . . . 3 . 6 4 . . 2 4 . 2 2 2 . Terminals 45 | . 1 . . . . . 4 1 . . . . 11 . . . . 4 . . . . 2 . 6 4 . . 2 4 . 2 2 2 . Track 2 | . . . . . . . . . . . . . 2 . . . . . . . . . . . . . . . . . . . . . . Assimilate 10 | . 1 . . . . . 2 1 . . . . 2 . . . . . . . . . . . 1 2 . . . 1 . . . . . Botnet 22 | . . . . . . . 1 . . . . . 3 . . . . 3 . . . . 1 . 4 2 . . 2 2 . 1 1 2 . Disrupt 3 | . . . . . . . . . . . . . 3 . . . . . . . . . . . . . . . . . . . . . . Operators 8 | . . . . . . . 1 . . . . . 1 . . . . 1 . . . . 1 . 1 . . . . 1 . 1 1 . . Fabricators 2 | . . . . . . . . 1 . . . . 1 . . . . . . . . . . . . . . . . . . . . . . Download 2 | . . . . . . . . 1 . . . . 1 . . . . . . . . . . . . . . . . . . . . . . Repair Stations 1 | . . . . . . . . . . . . . . . . . . . . . . . 1 . . . . . . . . . . . . Mechanics 1 | . . . . . . . . . . . . . . . . . . . . . . . 1 . . . . . . . . . . . . Recycling Units 3 | . . . . . . . 1 . . . . . 1 . . . . 1 . . . . . . . . . . . . . . . . . Monitor 2 | . . . . . . . . . . . . . 1 . . . . 1 . . . . . . . . . . . . . . . . . Mask 1 | . . . . . . . 1 . . . . . . . . . . . . . . . . . . . . . . . . . . . . Scanalyzers . | . . . . . . . . . . . . . . . . . . . . . . . . . . . . . . . . . . . . Garrison Access . | . . . . . . . . . . . . . . . . . . . . . . . . . . . . . . . . . . . . Data Cores Recovered 3 | . . . 1 . . . . . . . . . . . . . . . . . . . . . . . . . . . . . . 2 . Used 2 | . . . . . . . . . . . . . . . . . . . . . . . . . . . . . . . . . . 2 . Hacking Detections 74 | . 3 . 7 . . . 5 5 . . . . 8 . . . . 10 . . . . 5 . 6 5 1 . 4 6 . 2 1 4 2 Full Trace Events 5 | . . . . . . . . 1 . . . . . . . . . 1 . . . . . . 1 1 . . . . . . . 1 . Feedback Events 1 | . . . . . . . . 1 . . . . . . . . . . . . . . . . . . . . . . . . . . . Corruption 1 | . . . . . . . . 1 . . . . . . . . . . . . . . . . . . . . . . . . . . . Feedback Blocked . | . . . . . . . . . . . . . . . . . . . . . . . . . . . . . . . . . . . . Robot Schematics Acquired 5 | . . . . . . . . . . . 5 . . . . . . . . . . . . . . . . . . . . . . . . Robots Built . | . . . . . . . . . . . . . . . . . . . . . . . . . . . . . . . . . . . . Matter . | . . . . . . . . . . . . . . . . . . . . . . . . . . . . . . . . . . . . Time . | . . . . . . . . . . . . . . . . . . . . . . . . . . . . . . . . . . . . Total Robot Build Rating . | . . . . . . . . . . . . . . . . . . . . . . . . . . . . . . . . . . . . Part Schematics Acquired 27 | . . . 3 . . . . . . . 8 . 5 . . 5 . 2 . . . . . . 2 . . . . 2 . . . . . Parts Built 6 | . . . . . . . . . . . . . 1 . . . . 2 . . . . . . 3 . . . . . . . . . . Matter 1166 | . . . . . . . . . . . . . 318 . . . . 424 . . . . . . 424 . . . . . . . . . . Time 385 | . . . . . . . . . . . . . 84 . . . . 89 . . . . . . 212 . . . . . . . . . . Total Part Build Rating 37 | . . . . . . . . . . . . . 6 . . . . 12 . . . . . . 19 . . . . . . . . . . Parts Repaired 2 | . . . 1 . . . . . . . . . . . . . . . . . . . . . . . . . . 1 . . . . . Time 106 | . . . 26 . . . . . . . . . . . . . . . . . . . . . . . . . . 80 . . . . . Parts Recycled . | . . . . . . . . . . . . . . . . . . . . . . . . . . . . . . . . . . . . Recycled Matter . | . . . . . . . . . . . . . . . . . . . . . . . . . . . . . . . . . . . . Retrieved Matter . | . . . . . . . . . . . . . . . . . . . . . . . . . . . . . . . . . . . . Retrieved Components . | . . . . . . . . . . . . . . . . . . . . . . . . . . . . . . . . . . . . Parts Scanalyzed 8 | . . . 3 . . . . . . . . . 3 . . . . . . . . . . . . . . . . 2 . . . . . Part Schematics Acquired 8 | . . . 3 . . . . . . . . . 3 . . . . . . . . . . . . . . . . 2 . . . . . Parts Damaged . | . . . . . . . . . . . . . . . . . . . . . . . . . . . . . . . . . . . . Bothacking | -11 -10 -10 -9 -9 -9 -8 -8 -7 -7 -7 -7 -6 -6 -6 -6 -6 -5 -5 -5 -5 -5 -4 -4 -4 -4 -4 -4 -4 -4 -3 -3 -3 -2 -1 -1 ------------ Run | Scr Mat Min Mat Min Exi Min Mat Fac Low Low Dat Pro Fac Low Low Zio Pro Fac Upp Upp War Pro Fac Was Fac Ext Cet Arc Hub Res Gar Res Res Acc Com Used RIF Installer 1 | . . . . . . . . . . . . . . . . . . . . . . . . . . . . . . . 1 . . . . Robots Hacked . | . . . . . . . . . . . . . . . . . . . . . . . . . . . . . . . . . . . . Non-combat . | . . . . . . . . . . . . . . . . . . . . . . . . . . . . . . . . . . . . Combat . | . . . . . . . . . . . . . . . . . . . . . . . . . . . . . . . . . . . . Robot Hacks Applied . | . . . . . . . . . . . . . . . . . . . . . . . . . . . . . . . . . . . . Relay Couplers Released 5 | . . . . . . . . . . . . . . . . . . . . . . . . . . . . . . . 2 . 3 . . Machine Destruction 3 | . . . . . . . . . . . . . . . . . . . . . . . . . . . . . . . 2 . 1 . . Programmers 2 | . . . . . . . . . . . . . . . . . . . . . . . . . . . . . . . . . 2 . . Robots Rewired 18 | . . . . . . . . . . . . . . . . . . . . . . . . . . 18 . . . . . . . . . Allies Hacked 3 | . . . . . . . . . . . . . . . . . . . . . . . . . . 2 . . 1 . . . . . . Hacks Repelled . | . . . . . . . . . . . . . . . . . . . . . . . . . . . . . . . . . . . . Allies | -11 -10 -10 -9 -9 -9 -8 -8 -7 -7 -7 -7 -6 -6 -6 -6 -6 -5 -5 -5 -5 -5 -4 -4 -4 -4 -4 -4 -4 -4 -3 -3 -3 -2 -1 -1 -------- Run | Scr Mat Min Mat Min Exi Min Mat Fac Low Low Dat Pro Fac Low Low Zio Pro Fac Upp Upp War Pro Fac Was Fac Ext Cet Arc Hub Res Gar Res Res Acc Com Total Allies 34 | . 1 . . . . . 1 . . . . 1 1 . . . . . . . . . . 1 . 25 . . 3 1 . . . . . Largest Group 23 | . 1 . . . . . 1 1 . . . 1 1 1 1 1 1 . . . . . . 1 . 23 7 4 4 1 . . . . . Highest-Rated Group 1084 | . 10 . . . . . 10 10 . . . 94 94 23 23 23 23 . . . . . . 46 . 1084 287 149 311 26 . . . . . Highest-Rated Ally 156 | . 10 . . . . . 10 10 . . . 94 94 23 23 23 23 . . . . . . 46 . 156 49 49 109 26 . . . . . Total Orders 3 | . . . . . . . . . . . . . . . . . 1 . . . . . . . . . 2 . . . . . . . . STAY 1 | . . . . . . . . . . . . . . . . . 1 . . . . . . . . . . . . . . . . . . ROAM 1 | . . . . . . . . . . . . . . . . . . . . . . . . . . . 1 . . . . . . . . FOLLOW 1 | . . . . . . . . . . . . . . . . . . . . . . . . . . . 1 . . . . . . . . Ally Attacks 120 | . . . . . . . . . . . . 22 8 . . . . . . . . . . 9 . 23 24 3 31 . . . . . . Total Damage 3598 | . . . . . . . . . . . . 744 254 . . . . . . . . . . 223 . 846 727 143 661 . . . . . . Kills 23 | . . . . . . . . . . . . 6 3 . . . . . . . . . . . . 5 4 1 4 . . . . . . Allies Corrupted 2 | . . . . . . . . . . . . . . . . . . . . . . . . . . . . . 2 . . . . . . Allies Melted . | . . . . . . . . . . . . . . . . . . . . . . . . . . . . . . . . . . . . Field Lobotomies 4 | . . . . . . . . . . . . . . . . . . . . . . . . . . 1 . . 3 . . . . . . Intel | -11 -10 -10 -9 -9 -9 -8 -8 -7 -7 -7 -7 -6 -6 -6 -6 -6 -5 -5 -5 -5 -5 -4 -4 -4 -4 -4 -4 -4 -4 -3 -3 -3 -2 -1 -1 ------- Run | Scr Mat Min Mat Min Exi Min Mat Fac Low Low Dat Pro Fac Low Low Zio Pro Fac Upp Upp War Pro Fac Was Fac Ext Cet Arc Hub Res Gar Res Res Acc Com Robot Analysis Total 10 | . . . . . . . 3 . . . . . 3 . . . . 2 . . . . 1 . . 1 . . . . . . . . . Derelict Logs Recovered 12 | . . . . 1 . . . . . . . 2 . 1 1 1 1 . 2 2 . 1 . . . . . . . . . . . . . Drone Launches . | . . . . . . . . . . . . . . . . . . . . . . . . . . . . . . . . . . . . Drone Recoveries . | . . . . . . . . . . . . . . . . . . . . . . . . . . . . . . . . . . . . Exploration | -11 -10 -10 -9 -9 -9 -8 -8 -7 -7 -7 -7 -6 -6 -6 -6 -6 -5 -5 -5 -5 -5 -4 -4 -4 -4 -4 -4 -4 -4 -3 -3 -3 -2 -1 -1 ------------- Run | Scr Mat Min Mat Min Exi Min Mat Fac Low Low Dat Pro Fac Low Low Zio Pro Fac Upp Upp War Pro Fac Was Fac Ext Cet Arc Hub Res Gar Res Res Acc Com Turns Passed 14506 | 74 435 22 683 198 232 269 307 668 322 126 38 769 947 250 202 360 654 664 400 387 158 526 416 40 1002 756 283 91 407 754 127 580 555 449 355 Spaces Moved 22046 | 43 305 37 575 234 442 426 303 940 553 263 77 998 1382 470 362 728 825 903 677 767 396 773 732 102 1363 1026 453 163 488 1266 223 1041 1384 793 533 Core 2 | 2 . . . . . . . . . . . . . . . . . . . . . . . . . . . . . . . . . . . Treads 135 | 41 94 . . . . . . . . . . . . . . . . . . . . . . . . . . . . . . . . . . Legs . | . . . . . . . . . . . . . . . . . . . . . . . . . . . . . . . . . . . . Wheels . | . . . . . . . . . . . . . . . . . . . . . . . . . . . . . . . . . . . . Hover 21909 | . 211 37 575 234 442 426 303 940 553 263 77 998 1382 470 362 728 825 903 677 767 396 773 732 102 1363 1026 453 163 488 1266 223 1041 1384 793 533 Flight . | . . . . . . . . . . . . . . . . . . . . . . . . . . . . . . . . . . . . Fastest Speed 16 | 50 56 52 52 52 52 52 52 48 48 48 48 48 43 43 43 43 43 43 45 38 35 35 35 35 35 31 31 31 31 16 36 36 31 16 21 Average Speed 42 | 154 88 52 52 52 52 52 52 51 48 48 48 68 47 43 43 43 43 44 45 39 36 35 35 35 38 35 31 31 31 37 36 36 32 32 34 Slowest Speed 160 | 160 160 56 52 52 52 52 52 52 48 48 48 108 108 43 43 43 43 45 45 45 100 35 35 35 91 91 31 31 92 40 36 36 36 33 35 Overloaded Moves 51 | . . . . . . . . . . . . . . . . . . . . . . . . . . . . . . 5 . . . 37 9 Propulsion Burnouts . | . . . . . . . . . . . . . . . . . . . . . . . . . . . . . . . . . . . . Robots Hopped . | . . . . . . . . . . . . . . . . . . . . . . . . . . . . . . . . . . . . Cave-ins Triggered 1 | . . . . . . . . . . . . . . . . . . . . . . . . . . . . . . 1 . . . . . Exploration Rate (%) 56 | 4 55 22 54 39 89 90 36 28 68 46 69 86 33 64 60 85 80 23 80 92 61 85 18 91 29 92 94 95 42 34 58 35 49 29 18 Regions Visited 35 Branch Regions 21 Pre-discovered Areas 5 | . . . . . . . . . . . 1 . . . 1 3 . . . . . . . . . . . . . . . . . . . Known Exits Taken 10 | . . . 1 . . . 1 1 . . . 1 1 . . . . 1 . . . . . . 1 . . . 1 1 . . . 1 . Unknown Exits Taken 22 | 1 1 1 . 1 1 1 . . 1 1 1 . . 1 1 1 1 . 1 1 1 1 . . . 1 1 1 . . . 1 1 . . Scrap Searched 28 | . . 1 . 1 . 2 . . 1 1 . 5 . 3 1 1 2 . 4 5 . 1 . . . . . . . . . . . . . Spaces Dug 82 | . . . . 2 . . 1 7 2 . . . 10 . . . . 7 . . . 1 9 . 8 . . . . 15 . 1 9 5 5 Terrain Destroyed 429 | . . . . 2 . . 1 7 2 . . . 10 . . . . 7 . 28 . 1 9 . 8 . . . 319 15 . 1 9 5 5 Melee 82 | . . . . 2 . . 1 7 2 . . . 10 . . . . 7 . . . 1 9 . 8 . . . . 15 . 1 9 5 5 Projectile . | . . . . . . . . . . . . . . . . . . . . . . . . . . . . . . . . . . . . AOE 347 | . . . . . . . . . . . . . . . . . . . . 28 . . . . . . . . 319 . . . . . . Terrain Rammed . | . . . . . . . . . . . . . . . . . . . . . . . . . . . . . . . . . . . . Walls Destroyed . | . . . . . . . . . . . . . . . . . . . . . . . . . . . . . . . . . . . . Machines Disabled . | . . . . . . . . . . . . . . . . . . . . . . . . . . . . . . . . . . . . Actions | -11 -10 -10 -9 -9 -9 -8 -8 -7 -7 -7 -7 -6 -6 -6 -6 -6 -5 -5 -5 -5 -5 -4 -4 -4 -4 -4 -4 -4 -4 -3 -3 -3 -2 -1 -1 --------- Run | Scr Mat Min Mat Min Exi Min Mat Fac Low Low Dat Pro Fac Low Low Zio Pro Fac Upp Upp War Pro Fac Was Fac Ext Cet Arc Hub Res Gar Res Res Acc Com Total 25785 | 48 396 38 825 284 443 454 420 1067 586 262 77 1068 1597 510 399 772 1014 1109 728 818 409 921 823 105 1727 1373 581 199 698 1522 254 1201 1455 945 657 Wait 1635 | . 26 . 83 25 . 15 81 51 7 . . 13 106 28 26 16 60 123 . 9 . 40 29 4 241 149 84 21 95 129 3 59 13 77 22 Move 22009 | 42 304 36 574 233 441 425 302 939 552 262 76 997 1381 469 361 727 824 901 676 766 395 772 732 101 1362 1024 452 162 487 1265 221 1040 1383 792 533 Hop . | . . . . . . . . . . . . . . . . . . . . . . . . . . . . . . . . . . . . Pick Up 59 | 1 3 . 4 . 1 . . 4 1 . . 4 6 . 1 4 3 7 . 2 1 3 . . 3 1 . . . 7 . . 2 1 . Fast Attach 102 | 5 6 1 12 . . 2 4 6 1 . . 3 14 . . 3 3 2 . 1 6 . 5 . 4 . . 1 1 11 . 6 4 . 1 Attach 23 | . . 1 3 . 1 . . . 1 . 1 . 2 . . 2 1 1 . 1 . 1 . . 1 . . . 2 2 . . 2 . 1 Detach 12 | . . . 3 . . . . . . . . . . . . 1 1 . . . . . . . 1 . . . . 5 . 1 . . . Swap 56 | . . . 7 . . . 2 1 . . . . 2 . . 4 . 1 2 3 . . 1 . 4 8 1 . 7 9 . 2 1 1 . Drop 145 | . 6 . 18 . . 2 5 8 1 . . 6 22 . . 6 5 8 . 3 7 2 4 . 10 1 . . 1 19 . 5 4 1 1 Fire 76 | . 38 . 28 . . . . . . . . . . . . . . . . 2 . . . . . 1 . . 7 . . . . . . Melee 1014 | . . . 58 14 . 10 18 32 14 . . 13 50 4 5 1 69 37 25 20 . 65 40 . 71 78 30 6 55 50 21 62 38 58 70 Ram . | . . . . . . . . . . . . . . . . . . . . . . . . . . . . . . . . . . . . Kick . | . . . . . . . . . . . . . . . . . . . . . . . . . . . . . . . . . . . . Crush . | . . . . . . . . . . . . . . . . . . . . . . . . . . . . . . . . . . . . Escape Stasis 35 | . . . . . . . . 13 . . . . . . . . . 14 . . . . . . . 1 . . . 3 4 . . . . Rewire 79 | . . . . . . . . . . . . . . . . . . . . . . . . . . 78 . . . . . . . . 1 Trap . | . . . . . . . . . . . . . . . . . . . . . . . . . . . . . . . . . . . . Miscellaneous 540 | . 13 . 35 12 . . 8 13 9 . . 32 14 9 6 8 48 15 25 11 . 38 12 . 30 32 14 9 43 22 5 26 8 15 28 Route ------- -11/Scrapyard -10/Materials (discovered 3 exits: *Mat x2 / [*Min]) -10/Mines -9/Materials (discovered 3 exits: *Mat / *Min x2) -9/Mines (discovered 2 exits: *Mat / *Exi) -9/Exiles (discovered 2 exits: [*Min x2]) -8/Mines -8/Materials (discovered 3 exits: *Fac x3) -7/Factory (discovered 3 exits: *Fac / *Low x2) -7/Lower Caves -7/Lower Caves (discovered 2 exits: *Fac / *Dat) -7/Data Miner -6/Proximity Caves -6/Factory (discovered 4 exits: *Fac x2 / *Low x2) -6/Lower Caves -6/Lower Caves -6/Zion -5/Proximity Caves -5/Factory (discovered 3 exits: *Fac / *Upp x2) -5/Upper Caves -5/Upper Caves (discovered 2 exits: *Fac / *War) -5/Warlord -4/Proximity Caves -4/Factory (discovered 4 exits: *Res x2 / *Upp / *Ext) -4/Waste -4/Factory (discovered 4 exits: *Upp x2 / *Ext x2) -4/Extension (discovered 3 exits: *Res x2 / *Cet) -4/Cetus (discovered 3 exits: *Res x2 / *Arc) -4/Archives (discovered 3 exits: *Res / *Hub x2) -4/Hub_04(d) -3/Research (discovered 4 exits: Arm / Tes x2 / Gar) -3/Garrison -3/Research (discovered 4 exits: *Res x2 / *Arm / *Tes) -2/Research (discovered 3 exits: *Acc / Qua x2) -1/Access (discovered 2 exits: Sur / *Com) -1/Command History --------- Turn | Location | Event 1 | -11/Scrapyard | Upgraded with Propulsion slot (x1) 1 | -11/Scrapyard | Upgraded with Utility slot (x1) 1 | -11/Scrapyard | Upgraded with Weapon slot (x1) 21 | -11/Scrapyard | Discovered new exit (range 16) 75 | -11/Scrapyard | Entered Materials 324 | -10/Materials | Build established: Mutant 401 | -10/Materials | Discovered new exit (range 8) 464 | -10/Materials | Discovered new exit (range 16) 487 | -10/Materials | Discovered new exit (range 15) 510 | -10/Materials | Entered Mines 512 | -10/Mines | Reached level 2 512 | -10/Mines | Upgraded with Propulsion slot (x1) 512 | -10/Mines | Upgraded with Utility slot (x1) 526 | -10/Mines | Discovered new exit (range 9) 532 | -10/Mines | Entered Materials 534 | -9/Materials | Reached level 3 534 | -9/Materials | Upgraded with Utility slot (x1) 721 | -9/Materials | Reached level 4 736 | -9/Materials | Identified exit to Mines 1030 | -9/Materials | Reached level 5 1035 | -9/Materials | Upgraded with Utility slot (x1) 1064 | -9/Materials | Repaired Lgt. Armor Plating 1067 | -9/Materials | Discovered new exit (range 10) 1174 | -9/Materials | Build established: Scavenger-Mutant 1215 | -9/Materials | Entered Mines 1220 | -9/Mines | Learned 2 Materials zone layouts 1281 | -9/Mines | Met a Derelict bent on vengeance 1307 | -9/Mines | Assembled infested the area 1307 | -9/Mines | Discovered new exit (range 7) 1375 | -9/Mines | Met 8R-AWN 1408 | -9/Mines | Discovered new exit (range 5) 1413 | -9/Mines | Entered Exiles 1415 | -9/Exiles | Reached level 6 1420 | -9/Exiles | Discovered new exit (range 15) 1428 | -9/Exiles | Welcomed by 8R-AWN 1435 | -9/Exiles | Met EX-HEX 1450 | -9/Exiles | Met EX-BIN 1456 | -9/Exiles | Aligned with FarCom system 1457 | -9/Exiles | Given EX-Vault access code 1469 | -9/Exiles | Opened EX-Vault 1471 | -9/Exiles | Upgraded with Weapon slot (x1) 1494 | -9/Exiles | Warned to stay clear of 0b10 Research branches 1514 | -9/Exiles | Found Field Lobotomy Kit 1556 | -9/Exiles | Met EX-DEC 1567 | -9/Exiles | Visited The Gauntlet 1640 | -9/Exiles | Discovered new exit (range 11) 1645 | -9/Exiles | Left Exiles lab with Field Lobotomy Kit 1645 | -9/Exiles | Entered Mines 1809 | -8/Mines | Discovered new exit (range 7) 1914 | -8/Mines | Entered Materials 1916 | -8/Materials | Reached level 7 2038 | -8/Materials | Identified exit to Factory 2119 | -8/Materials | Reached level 8 2122 | -8/Materials | Upgraded with Power slot (x1) 2122 | -8/Materials | Upgraded with Utility slot (x1) 2221 | -8/Materials | Entered Factory 2221 | -7/Factory | Accompanied by 1 ally 2223 | -7/Factory | Reached level 9 2223 | -7/Factory | Upgraded with Propulsion slot (x1) 2315 | -7/Factory | Discovered new exit (range 7) 2366 | -7/Factory | Build established: Mutant 2632 | -7/Factory | Identified exit to Lower Caves 2889 | -7/Factory | Entered Lower Caves 2891 | -7/Lower Caves | Reached level 10 2892 | -7/Lower Caves | Upgraded with Utility slot (x1) 2915 | -7/Lower Caves | Spotted B-75 Beast 3123 | -7/Lower Caves | Build established: Scavenger-Mutant 3171 | -7/Lower Caves | Discovered new exit (range 6) 3182 | -7/Lower Caves | Attacked by a delusional Derelict stockpiling parts 3211 | -7/Lower Caves | Entered another Lower Caves area 3217 | -7/Lower Caves | Discovered new exit (range 6) 3320 | -7/Lower Caves | Discovered new exit (range 9) 3337 | -7/Lower Caves | Entered Data Miner 3337 | -7/Data Miner | Discovered new exit (range 6) 3339 | -7/Data Miner | Reached level 11 3339 | -7/Data Miner | Upgraded with Weapon slot (x1) 3348 | -7/Data Miner | Met Data Miner 3357 | -7/Data Miner | Learned location of Section 7 (-2) 3357 | -7/Data Miner | Acquired the access code to Warlord's prototype stash 3364 | -7/Data Miner | Received God Mode back door access code from Data Miner 3375 | -7/Data Miner | Entered Proximity Caves 3382 | -6/Proximity Caves | Escorted by Enhanced Grunt 3383 | -6/Proximity Caves | Attracted the attention of an 0b10 checkpoint 3385 | -6/Proximity Caves | Reached level 12 3508 | -6/Proximity Caves | Learned Factory trap positions 3701 | -6/Proximity Caves | Build established: Hacker-Mutant 3714 | -6/Proximity Caves | Spotted B-75 Beast 3868 | -6/Proximity Caves | Identified exit to Factory 4031 | -6/Proximity Caves | Reached level 13 4063 | -6/Proximity Caves | Build established: Hacker-Gladiator 4144 | -6/Proximity Caves | Entered Factory 4144 | -6/Factory | Accompanied by 1 ally 4145 | -6/Factory | Loaded intel: 113 trap records 4146 | -6/Factory | Reached level 14 4234 | -6/Factory | Identified exit to Lower Caves 4311 | -6/Factory | Discovered new exit (range 16) 4439 | -6/Factory | Local fabrication network quarantined 4473 | -6/Factory | Fabricated Plasma Sword (x1) 4705 | -6/Factory | Discovered new exit (range 16) 4764 | -6/Factory | Build established: Hacker-Mutant 4997 | -6/Factory | Reached level 15 5008 | -6/Factory | Upgraded with Propulsion slot (x1) 5091 | -6/Factory | Entered Lower Caves 5091 | -6/Lower Caves | Accompanied by 1 ally 5290 | -6/Lower Caves | Discovered new exit (range 16) 5296 | -6/Lower Caves | Attracted the attention of an 0b10 checkpoint 5341 | -6/Lower Caves | Entered another Lower Caves area 5341 | -6/Lower Caves | Accompanied by 1 ally 5342 | -6/Lower Caves | Encountered a Warlord checkpoint 5343 | -6/Lower Caves | Reached level 16 5469 | -6/Lower Caves | Learned location of Zion (-6) 5536 | -6/Lower Caves | Discovered new exit (range 5) 5543 | -6/Lower Caves | Entered Zion 5543 | -6/Zion | Accompanied by 1 ally 5568 | -6/Zion | Given A8's code to call for help 5573 | -6/Zion | System corruption cleaned by Quarantine Array 5589 | -6/Zion | Learned Factory emergency access door positions 5596 | -6/Zion | Learned Factory stockpile data 5677 | -6/Zion | Rebuked by Imprinter 5730 | -6/Zion | Learned location of Armory (-3) 5788 | -6/Zion | Given the Hacking Drone Bay 5790 | -6/Zion | Found Prototype Device 5794 | -6/Zion | Identified Hacking Drone Bay 5826 | -6/Zion | Found Unknown Piercing Weapon 5826 | -6/Zion | Identified CR-A16's Pointy Stick 5881 | -6/Zion | Found Prototype Device 5882 | -6/Zion | Identified Phasing AFG 5895 | -6/Zion | Discovered new exit (range 10) 5903 | -6/Zion | Entered Proximity Caves 5903 | -5/Proximity Caves | Accompanied by 1 ally 5905 | -5/Proximity Caves | Reached level 17 5981 | -5/Proximity Caves | Found Imp. Powered Armor 6053 | -5/Proximity Caves | Attracted the attention of an 0b10 checkpoint 6218 | -5/Proximity Caves | Reached level 18 6219 | -5/Proximity Caves | Upgraded with Utility slot (x1) 6259 | -5/Proximity Caves | Attracted the attention of an 0b10 outpost 6354 | -5/Proximity Caves | Reached level 19 6375 | -5/Proximity Caves | Destroyed 9 combat bots 6539 | -5/Proximity Caves | Learned Factory emergency access door positions 6550 | -5/Proximity Caves | Discovered new exit (range 7) 6557 | -5/Proximity Caves | Entered Factory 6558 | -5/Factory | Identified exit to Upper Caves 6559 | -5/Factory | Reached level 20 6559 | -5/Factory | Upgraded with Utility slot (x1) 6646 | -5/Factory | Fabricated Cloaking Device (x1) 6893 | -5/Factory | Discovered new exit (range 15) 6915 | -5/Factory | Reached level 21 6920 | -5/Factory | Upgraded with Weapon slot (x1) 7199 | -5/Factory | Fabricated Force Lance (x1) 7221 | -5/Factory | Entered Upper Caves 7318 | -5/Upper Caves | Spotted B-75 Beast 7382 | -5/Upper Caves | Destroyed B-75 Beast 7403 | -5/Upper Caves | Learned Factory emergency access door positions 7465 | -5/Upper Caves | Learned Factory stockpile data 7490 | -5/Upper Caves | Attracted the attention of an 0b10 checkpoint 7518 | -5/Upper Caves | Discovered new exit (range 12) 7586 | -5/Upper Caves | Encountered a Warlord checkpoint 7621 | -5/Upper Caves | Entered another Upper Caves area 7623 | -5/Upper Caves | Discovered new exit (range 11) 7690 | -5/Upper Caves | Reached level 22 7692 | -5/Upper Caves | Upgraded with Propulsion slot (x1) 7762 | -5/Upper Caves | Learned Factory emergency access door positions 7766 | -5/Upper Caves | Encountered a Warlord checkpoint 7772 | -5/Upper Caves | Learned Factory emergency access door positions 7965 | -5/Upper Caves | Discovered new exit (range 13) 8008 | -5/Upper Caves | Entered Warlord 8083 | -5/Warlord | Met Warlord 8089 | -5/Warlord | Opened Warlord's prototype stash 8091 | -5/Warlord | Found Prototype Reactor 8091 | -5/Warlord | Identified Vortex Chain Reactor 8094 | -5/Warlord | Warlord's base attacked by MAIN.C 8098 | -5/Warlord | Found Prototype Device 8098 | -5/Warlord | Identified Exp. Focal Shield 8125 | -5/Warlord | Learned Factory terminal intel 8125 | -5/Warlord | Learned Armory recycling unit intel 8125 | -5/Warlord | Learned 4 Armory zone layouts 8125 | -5/Warlord | Learned 4 Research zone layouts 8125 | -5/Warlord | Learned 4 Research zone layouts 8126 | -5/Warlord | Learned Quarantine trap positions 8126 | -5/Warlord | Learned Quarantine emergency access door positions 8162 | -5/Warlord | Discovered new exit (range 12) 8166 | -5/Warlord | Entered Proximity Caves 8168 | -4/Proximity Caves | Reached level 23 8168 | -4/Proximity Caves | Upgraded with Power slot (x1) 8207 | -4/Proximity Caves | Learned Research terminal intel 8307 | -4/Proximity Caves | Attracted the attention of an 0b10 outpost 8399 | -4/Proximity Caves | Destroyed 7 combat bots 8472 | -4/Proximity Caves | Reached level 24 8491 | -4/Proximity Caves | Spotted B-86 Titan 8664 | -4/Proximity Caves | Attracted the attention of an 0b10 checkpoint 8687 | -4/Proximity Caves | Discovered new exit (range 13) 8692 | -4/Proximity Caves | Entered Factory 8693 | -4/Factory | Identified exit to Research 8696 | -4/Factory | Loaded intel: 21 terminal locations 8920 | -4/Factory | Reached level 25 8956 | -4/Factory | Upgraded with Utility slot (x1) 9016 | -4/Factory | Discovered new exit (range 10) 9045 | -4/Factory | Discovered exit to Research (range 10) 9051 | -4/Factory | Found Prototype Slashing Weapon 9051 | -4/Factory | Identified Molecular Scythe 9098 | -4/Factory | Discovered new exit (range 3) 9108 | -4/Factory | Sucked down chute 9108 | -4/Factory | Entered Waste 9109 | -4/Waste | Met a frightened Derelict 9112 | -4/Waste | Spotted C-40 Crusher 9123 | -4/Waste | EMP discharged 9124 | -4/Waste | Spotted C-40 Crusher 9134 | -4/Waste | Spotted C-40 Crusher 9138 | -4/Waste | Spotted C-40 Crusher 9141 | -4/Waste | Discovered new exit (range 16) 9141 | -4/Waste | Spotted C-40 Crusher 9143 | -4/Waste | Spotted C-40 Crusher 9148 | -4/Waste | Entered Factory 9264 | -4/Factory | Incoming investigation squad redirected 9469 | -4/Factory | Discovered new exit (range 15) 9611 | -4/Factory | Identified exit to Upper Caves 9611 | -4/Factory | Identified exit to Extension 9876 | -4/Factory | Fabricated Imp. Actuator Array (x1) 9995 | -4/Factory | Fabricated Nanoactuators (x2) 10150 | -4/Factory | Entered Extension 10152 | -4/Extension | Reached level 26 10200 | -4/Extension | Rescued a captive Derelict 10201 | -4/Extension | Rescued a captive Derelict 10202 | -4/Extension | Rescued a captive Derelict 10582 | -4/Extension | Assimilated B-86 Titan with FLK Orb 10592 | -4/Extension | Spotted B-86 Titan 10607 | -4/Extension | Destroyed B-86 Titan 10650 | -4/Extension | First assault squad dispatched 10663 | -4/Extension | Build established: Commander-Mutant 10668 | -4/Extension | Rescued a captive Derelict 10702 | -4/Extension | Incoming investigation squad redirected 10804 | -4/Extension | Reached level 27 10811 | -4/Extension | Discovered new exit (range 16) 10825 | -4/Extension | Disrupted transfer network 10825 | -4/Extension | Destroyed 7 combat bots 10855 | -4/Extension | Rescued A7 10868 | -4/Extension | Rescued a captive Derelict 10881 | -4/Extension | Destroyed 7 combat bots 10906 | -4/Extension | Entered Cetus 10906 | -4/Cetus | Accompanied by 7 allies 10911 | -4/Cetus | Spotted Cetus Guard 10912 | -4/Cetus | Spotted Cetus Guard 10926 | -4/Cetus | Spotted Cetus Guard 10926 | -4/Cetus | Spotted Cetus Guard 10932 | -4/Cetus | Destroyed Cetus Guard 10934 | -4/Cetus | Allies destroyed Cetus Guard 10938 | -4/Cetus | Destroyed Cetus Guard 10944 | -4/Cetus | Allies destroyed Cetus Guard 10960 | -4/Cetus | Central database locked down 10988 | -4/Cetus | Discovered new exit (range 15) 11037 | -4/Cetus | Spotted Cetus Guard 11037 | -4/Cetus | Spotted Cetus Guard 11037 | -4/Cetus | Spotted Cetus Guard 11037 | -4/Cetus | Spotted Cetus Guard 11039 | -4/Cetus | Destroyed Cetus Guard 11042 | -4/Cetus | Destroyed Cetus Guard 11042 | -4/Cetus | Allies destroyed Cetus Guard 11044 | -4/Cetus | Destroyed Cetus Guard 11054 | -4/Cetus | Discovered exit to Research (range 16) 11056 | -4/Cetus | Met Revision 17 11122 | -4/Cetus | Discovered exit to Research (range 15) 11189 | -4/Cetus | Entered Archives 11189 | -4/Archives | Accompanied by 4 allies 11203 | -4/Archives | Discovered new exit (range 16) 11209 | -4/Archives | Discovered new exit (range 15) 11212 | -4/Archives | Discovered exit to Research (range 15) 11220 | -4/Archives | Build established: Hacker-Sprinter 11228 | -4/Archives | Unable to access archive contents 11231 | -4/Archives | Unable to access archive contents 11234 | -4/Archives | Unable to access archive contents 11280 | -4/Archives | Entered Hub_04(d) 11280 | -4/Hub_04(d) | Accompanied by 4 allies 11310 | -4/Hub_04(d) | Discovered exit to Research (range 13) 11384 | -4/Hub_04(d) | Network Hub disabled 11384 | -4/Hub_04(d) | Reached level 28 11385 | -4/Hub_04(d) | System corruption reached 10% 11524 | -4/Hub_04(d) | Spotted Lightning 11530 | -4/Hub_04(d) | First assault squad dispatched 11531 | -4/Hub_04(d) | Spotted Lightning 11531 | -4/Hub_04(d) | Spotted Lightning 11533 | -4/Hub_04(d) | Destroyed Lightning 11534 | -4/Hub_04(d) | Spotted Lightning 11537 | -4/Hub_04(d) | Spotted Lightning 11539 | -4/Hub_04(d) | Spotted Lightning 11551 | -4/Hub_04(d) | Incoming assault squad redirected 11561 | -4/Hub_04(d) | Assimilated Lightning with FLK Orb 11564 | -4/Hub_04(d) | Assimilated Lightning with FLK Orb 11567 | -4/Hub_04(d) | Assimilated Lightning with FLK Orb 11599 | -4/Hub_04(d) | Destroyed Lightning 11614 | -4/Hub_04(d) | Destroyed Lightning 11619 | -4/Hub_04(d) | Network Hub disabled 11660 | -4/Hub_04(d) | High security lockdown imminent 11685 | -4/Hub_04(d) | Spotted Lightning 11686 | -4/Hub_04(d) | Spotted Lightning 11686 | -4/Hub_04(d) | Spotted Lightning 11687 | -4/Hub_04(d) | Entered Research 11689 | -3/Research | Loaded intel: 19 terminal locations 11715 | -3/Research | Found Prototype Device 11715 | -3/Research | Identified Exp. Thermal Shield 11814 | -3/Research | Found Prototype Slashing Weapon 11814 | -3/Research | Identified Nanosword 12019 | -3/Research | Build established: Hacker-Mutant 12041 | -3/Research | Garrison activated, responded to threat 12059 | -3/Research | Repaired Exp. Utility Shielding 12148 | -3/Research | Reached level 29 12149 | -3/Research | Upgraded with Weapon slot (x1) 12165 | -3/Research | Found Prototype Slashing Weapon 12165 | -3/Research | Identified Centrium Greatsword 12256 | -3/Research | Identified exit to Armory 12256 | -3/Research | Identified exit to Testing 12416 | -3/Research | Build established: Hacker-Gladiator 12417 | -3/Research | Identified exit to Garrison 12418 | -3/Research | Crushed by falling debris 12441 | -3/Research | Entered Garrison 12443 | -3/Garrison | Installed Relay Interface Framework 12454 | -3/Garrison | Triggered checkpoint 12462 | -3/Garrison | Garrison Relay disabled 12480 | -3/Garrison | Triggered checkpoint 12523 | -3/Garrison | Garrison Relay disabled 12524 | -3/Garrison | Triggered checkpoint 12562 | -3/Garrison | Triggered checkpoint 12565 | -3/Garrison | Discovered new exit (range 11) 12568 | -3/Garrison | Entered Research 12616 | -3/Research | Discovered new exit (range 7) 12695 | -3/Research | Discovered exit to Armory (range 15) 12770 | -3/Research | Discovered exit to Testing (range 15) 13033 | -3/Research | Reached level 30 13068 | -3/Research | First assault squad dispatched 13132 | -3/Research | Discovered new exit (range 15) 13148 | -3/Research | Entered another Research area 13148 | -2/Research | Warlord forces began assault on 0b10 13149 | -2/Research | Identified exit to Quarantine 13251 | -2/Research | Reached level 31 13251 | -2/Research | Met up with Warlord 13251 | -2/Research | Upgraded with Utility slot (x1) 13258 | -2/Research | Research machine network offline 13561 | -2/Research | Spotted Striker 13565 | -2/Research | Destroyed Striker 13590 | -2/Research | Destroyed 7 combat bots 13629 | -2/Research | Borebot progress halted 13650 | -2/Research | Build established: Hacker-Sprinter 13654 | -2/Research | Found Adv. Force Booster 13686 | -2/Research | Discovered new exit (range 15) 13703 | -2/Research | Entered Access 13705 | -1/Access | Reached level 32 13776 | -1/Access | Reached level 33 13810 | -1/Access | Destroyed 9 combat bots 13953 | -1/Access | First assault squad dispatched 13963 | -1/Access | Identified exit to Surface 14014 | -1/Access | Identified exit to Command 14069 | -1/Access | Spotted B-99 Colossus 14098 | -1/Access | Reached level 34 14128 | -1/Access | Destroyed 9 combat bots 14144 | -1/Access | Spotted B-99 Colossus 14145 | -1/Access | Spotted B-99 Colossus 14152 | -1/Access | Entered Command 14220 | -1/Command | Reached level 35 14239 | -1/Command | Disengaged cave seal 14285 | -1/Command | Spotted M Guard 14285 | -1/Command | Spotted M Guard 14285 | -1/Command | Spotted Combat Programmer 14286 | -1/Command | Spotted Combat Programmer 14298 | -1/Command | Core integrity fell below 50% 14302 | -1/Command | Destroyed Combat Programmer 14306 | -1/Command | Core integrity fell below 20% 14306 | -1/Command | Destroyed Combat Programmer 14309 | -1/Command | Destroyed M Guard 14311 | -1/Command | Destroyed M Guard 14311 | -1/Command | All MAIN.C guards destroyed 14336 | -1/Command | Welcomed Warlord to Command 14340 | -1/Command | Warlord commented on Warlord statues 14444 | -1/Command | First assault squad dispatched 14491 | -1/Command | Warlord destroyed during the assault 14493 | -1/Command | Build established: Generator-Gladiator 14507 | -1/Command | Destroyed by H-88 Terminator with KE Penetrator Last Messages --------------- 14505_ L-61 Swordsman suffers critical hit. 14505_ Slug penetrates Wall. 14505_ Nanosword follow-up attack on B-74 Champion. 14505_ Molecular Scythe follow-up attack on B-74 Champion. 14505_ Plasma Lance follow-up attack on B-74 Champion. 14505_ Penetrated by Slug. 14506_ K-01 Serf collects debris. 14506_ Slug penetrates B-74 Champion. 14506_ B-74 Champion destroyed. 14506_ Penetrated by Slug. 14507_ System corrupted: Centrium Greatsword targeting data glitched. 14507_ L-61 Swordsman destroyed. 14507_ Nanosword follow-up attack on H-88 Terminator. 14507_ H-88 Terminator destroyed. 14507_ Molecular Scythe follow-up attack on H-88 Terminator. 14507_ H-88 Terminator destroyed. 14507_ Penetrated by Slug. [Achievement: 30k Club] [Achievement: 40k Club] [Achievement: 50k Club] Map ----- +----------------------------------------------------+ | ?????????????????????????????????????????????????? | | ?????????????????????????####????????????????????? | | ????????????????????????# #????????????????????? | | ????????????????????????# #????????????????????? | | ????????????????????????# #????????????????????? | | ????????????????????????# #????????????????????? | | ????????????????????????# #????????????????????? | | ????????????????????????# #????????????????????? | | ????????????????????????# #????????????????????? | | ????????????????????????# #????????????????????? | | ????????????????????????# #????????????????????? | | ????????????????????????# #????????????????????? | | ????????????????????????# #????????????????????? | | ????????????????????????# #????????????????????? | | ????????????????????????# #????????????????????? | | ????????????????????????# #????????????????????? | | ?????????????????????#### #????????????????????? | | ?????????????????????# #????????????????????? | | ?????????????????????# # #????????????????????? | | ?????????????????????# # ########?????????????? | | ?????????????????????# # # # ###???????????? | | ?????????????????????#!/#% ## ## #???????????? | | ?????????????????#"""##%%=#### # # ####?#####??? | | ?????????????????# #*[%!*## !=!#?#*!=#??? | | ?????????????????# ##*=!%!# !]###!%!###]%[#### | | ?????????????????# [=%/%@!=% !!= *!= + | | ?????????????????# /=h=/%=hh ! + | | ?????????????????# !h=h!h% + | | ?????????????????# !!%!%hh = + | | ?????????????????# %%=**! k ** !!* + | | ?????????????????# #[[ # [ %###!%!#### | | ?????????????????###### [ # #!! #?#![*#??? | | ?????????????????????#h#![ ### #####?#####??? | | ?????????????????????# *%= # #????????????? | | ?????????????????????## #!%* ## ####????????????? | | ??????????????????????# [!= #???????????????? | | ??????????????????????## =!%% #???????????????? | | ??????????????????????# %*[[######???????????????? | | ??????????????????????##!=!%#????????????????????? | | ???????????????????????##=!%#????????????????????? | | ????????????????????????#=%*#????????????????????? | | ????????????????????????#![!#????????????????????? | | ???????????????????????#=== #?????????????????#### | | ???????????????????????#|= #?????????????????# | | ???????????????????????# #?????????????????# ## | | ???????????????????????## #?????????????????# #? | | ????????????????????????# #?????????????????# #? | | ????????????????????????# #?????????????????# #? | | ????????????????????????# ##?????????????????# ## | | ???????????????????????? ??????????????????# | +----------------------------------------------------+ Best States ------------- Heat Dissipation 85 Energy Generation 82 Energy Capacity 1100 Matter Stores 300 Matter Capacity 300 Sight Range 18 Robot Scan Range 13 Terrain Scan Density 10 Heat Shielding 75 Armor Coverage 550 Resistance: KI 30 Resistance: TH 30 Resistance: EX 50 Resistance: EM 25 Utility Shielding 90 Melee Speed Boost 50 Phase Shifting 10 Evasion (%) 82 Targeting Accuracy 5 Melee Accuracy 16 Core Analysis 8 Recoil Reduction 2 Force Boost 5 Stasis Canceling 1 Offensive Hacking 43 Defensive Hacking 5 Item Schematics ----------------- Imp. Sensor Array | -9/Materials | Scanalyzed Utility Shielding | -9/Materials | Scanalyzed Lrg. Battery | -9/Materials | Scanalyzed Combat Drone Bay | -7/Data Miner | Free Lgt. Regenerative Plating | -7/Data Miner | Free Exp. Cesium-ion Thruster | -7/Data Miner | Free Exp. Terrain Scan Processor | -7/Data Miner | Free Tactical Coordination Suite | -7/Data Miner | Free Exp. ECM Suite | -7/Data Miner | Free Cloaking Device | -7/Data Miner | Free Plasma Sword | -7/Data Miner | Free Mak. System Restoration Module | -6/Factory | Scanalyzed Imp. Light Armor Plating | -6/Factory | Scanalyzed Imp. Medium Armor Plating | -6/Factory | Scanalyzed Adv. ECM Suite | -6/Factory | Hacked Linear Gravjet | -6/Factory | Downloaded Riot Gun | -6/Zion | Free Hvy. Riot Gun | -6/Zion | Free Battle Cannon | -6/Zion | Free Flamer | -6/Zion | Free Ripper | -6/Zion | Free Matter Neutralizer | -5/Factory | Hacked Force Lance | -5/Factory | Hacked Imp. Actuator Array | -4/Factory | Hacked Nanoactuators | -4/Factory | Hacked System Restoration Module | -3/Research | Scanalyzed Exp. Utility Shielding | -3/Research | Scanalyzed Robot Schematics ------------------ S-27 Virus | -7/Data Miner | Free G-50 Soldier | -7/Data Miner | Free G-67 Veteran | -7/Data Miner | Free H-66 Slayer | -7/Data Miner | Free I-36 Angel | -7/Data Miner | Free Fabricated ------------ Plasma Sword | x1 | -6/Factory Cloaking Device | x1 | -5/Factory Force Lance | x1 | -5/Factory Imp. Actuator Array | x1 | -4/Factory Nanoactuators | x2 | -4/Factory Alien Tech Used ----------------- None Achievements -------------- 30k Club 40k Club 50k Club All-out Warlord Assassin Can't Touch This Corridor Of Doom Deadly Force Gladiator Great Explorer Hunted It Was An Accident, I Swear Maximum Efficiency Melee Specialist More Power To You Ooh, Shiny! Preemptive Strike Prison Break Revising The Future Treasure Hunter Ultimate Loadout We Are Legion Whoosh! Challenges ------------ None RPGLIKE | -11 -10 -10 -9 -9 -9 -8 -8 -7 -7 -7 -7 -6 -6 -6 -6 -6 -5 -5 -5 -5 -5 -4 -4 -4 -4 -4 -4 -4 -4 -3 -3 -3 -2 -1 -1 --------- Run | Scr Mat Min Mat Min Exi Min Mat Fac Low Low Dat Pro Fac Low Low Zio Pro Fac Upp Upp War Pro Fac Was Fac Ext Cet Arc Hub Res Gar Res Res Acc Com Levels Raised 34 | . . 1 3 . 1 . 2 1 1 . 1 2 2 . 1 . 3 2 . 1 . 2 1 . . 2 . . 1 1 . 1 1 3 1 XP Earned 54790 | 3000 1115 500 4607 1175 350 850 1940 2755 875 500 650 2738 3182 950 500 650 4403 2416 772 845 338 2847 1419 67 969 1916 541 178 938 1379 592 699 1993 4234 1907 XP Spent 53860 | 2650 210 1600 4480 . 1400 . 3000 1100 2000 . 1500 2600 3410 . 300 1250 3300 4000 . 1700 . 1080 2900 . 360 3100 . . 990 1700 . . 3350 4380 1500 Upgrades 83 | 6 3 2 15 . 2 . 4 1 1 . 3 4 4 . 2 1 4 2 . 1 . 3 1 . 2 2 . . 3 1 . . 2 12 2 Power Slot 2 | . . . . . . . 1 . . . . . . . . . . . . . . 1 . . . . . . . . . . . . . Propulsion Slot 5 | 1 . 1 . . . . . 1 . . . . 1 . . . . . . 1 . . . . . . . . . . . . . . . Utility Slot 10 | 1 . 1 2 . . . 1 . 1 . . . . . . . 1 1 . . . . 1 . . . . . . . . . 1 . . Weapon Slot 5 | 1 . . . . 1 . . . . . 1 . . . . . . 1 . . . . . . . . . . . 1 . . . . . Core Integrity 14 | . . . 8 . . . . . . . . . . . . . . . . . . . . . . . . . . . . . . 6 . Heat Dissipation 10 | . 3 . . . . . . . . . . . 1 . . . . . . . . 2 . . 2 . . . 2 . . . . . . Energy Generation 3 | . . . . . . . . . . . . . . . . . 1 . . . . . . . . . . . 1 . . . . 1 . Mass Support 4 | . . . 1 . 1 . . . . . . . 1 . . . . . . . . . . . . 1 . . . . . . . . . Inventory Capacity 6 | 2 . . . . . . 1 . . . . 1 . . . 1 . . . . . . . . . 1 . . . . . . . . . Sensor Range 1 | . . . . . . . 1 . . . . . . . . . . . . . . . . . . . . . . . . . . . . Ranged Accuracy 1 | 1 . . . . . . . . . . . . . . . . . . . . . . . . . . . . . . . . . . . Melee Accuracy 7 | . . . 4 . . . . . . . . 1 . . . . . . . . . . . . . . . . . . . . . . 2 Hack Attack % 4 | . . . . . . . . . . . 1 2 1 . . . . . . . . . . . . . . . . . . . . . . Hack Defense % 1 | . . . . . . . . . . . 1 . . . . . . . . . . . . . . . . . . . . . . . . KI Resistance % 4 | . . . . . . . . . . . . . . . 1 . 1 . . . . . . . . . . . . . . . . 2 . TH Resistance % 4 | . . . . . . . . . . . . . . . 1 . 1 . . . . . . . . . . . . . . . . 2 . EX Resistance % 2 | . . . . . . . . . . . . . . . . . . . . . . . . . . . . . . . . . 1 1 . Protomatter Created 6857 | . 82 . 265 60 . . 54 162 56 . . 112 62 65 46 . 494 178 299 139 . 550 313 . 481 928 225 72 437 564 62 300 210 287 354 Integrity Restored 10068 | . 240 . 727 245 . . 158 285 168 . . 664 278 195 132 157 931 229 498 158 . 691 197 . 537 453 202 180 818 362 65 493 88 290 627 Core 6801 | . 227 . 646 228 . . 121 207 168 . . 306 145 195 44 . 623 127 301 84 . 452 143 . 319 241 123 117 630 260 46 203 35 183 627 Parts 3267 | . 13 . 81 17 . . 37 78 . . . 358 133 . 88 157 308 102 197 74 . 239 54 . 218 212 79 63 188 102 19 290 53 107 . Protomatter Decayed 5583 | . . . 18 48 . . . 66 . . . 41 12 . . . 67 137 118 74 136 361 198 . 219 622 233 8 322 311 . 78 1794 290 430 Game ------ Seed SpikedLightningBoregun Manual? 0 Play Time 09:27:34 Cumulative 75.0 hours Start 2022.02.22 @ 00:14:48 End 2022.03.19 @ 05:47:16 Sessions 11 Manual Loads 0 Difficulty Rogue Special Mode Winter2019/RPGLIKE Game No. 24 Rogue 24 Adventurer 0 Explorer 0 Win Type - Total 2 Types 2/0/0/0/0/0/0/0/0 Lore% 49 Gallery% 45 Achievement% 45 Wizard Run 0 Options --------- ASCII 0 Keyboard 0 Movement Numpad Keybinds 0 Fullscreen 1 Font 18/SmallcapsGlow Map View 76x50 Tactical HUD 1 Map Filters NONE Filters NONE Steam 1 RUN: 46629d0a-e41a-428f-860d-f08d137605f2